Publisher Label,Publisher URI,"Supplier ID","Supplier","Invoice No.","Amount (£)","Purpose","Transaction Number","Payment Date","Organisational Unit","Cost Centre(T)","Internal Category Number"
"Wolverhampton City Council","http://opendatacommunities.org/id/metropolitan-district-council/wolverhampton","708251","Total Gas & Power Limited","166070514","23.52","Gas","190437245","09/03/2018","Schools","Trinity Church of England Primary School","R2101"
"Wolverhampton City Council","http://opendatacommunities.org/id/metropolitan-district-council/wolverhampton","708251","Total Gas & Power Limited","166070569","269.51","Gas","190437250","09/03/2018","Corporate Asset Management","Central Utilities to Recharge","R2101"
"Wolverhampton City Council","http://opendatacommunities.org/id/metropolitan-district-council/wolverhampton","708251","Total Gas & Power Limited","166124150","968.51","Gas","190437411","09/03/2018","Corporate Asset Management","Central Utilities to Recharge","R2101"
"Wolverhampton City Council","http://opendatacommunities.org/id/metropolitan-district-council/wolverhampton","708251","Total Gas & Power Limited","166124095","23.52","Gas","190437405","09/03/2018","Corporate Asset Management","Central Utilities to Recharge","R2101"
"Wolverhampton City Council","http://opendatacommunities.org/id/metropolitan-district-council/wolverhampton","708251","Total Gas & Power Limited","166124216","312.96","Gas","190437417","09/03/2018","Corporate Asset Management","Central Utilities to Recharge","R2101"
"Wolverhampton City Council","http://opendatacommunities.org/id/metropolitan-district-council/wolverhampton","708251","Total Gas & Power Limited","166078710","7,044.36","Gas","190437277","09/03/2018","Corporate Asset Management","Central Utilities to Recharge","R2101"
"Wolverhampton City Council","http://opendatacommunities.org/id/metropolitan-district-council/wolverhampton","708251","Total Gas & Power Limited","166078555","566.01","Gas","190437261","09/03/2018","Schools","St Michael�s Church of England Primary School","R2101"
"Wolverhampton City Council","http://opendatacommunities.org/id/metropolitan-district-council/wolverhampton","708251","Total Gas & Power Limited","166123083","52.14","Gas","190437307","09/03/2018","Schools","Claregate Primary School","R2101"
"Wolverhampton City Council","http://opendatacommunities.org/id/metropolitan-district-council/wolverhampton","708251","Total Gas & Power Limited","166123127","402.71","Gas","190437311","09/03/2018","Schools","St Andrews Church of England Primary School","R2101"
"Wolverhampton City Council","http://opendatacommunities.org/id/metropolitan-district-council/wolverhampton","708251","Total Gas & Power Limited","166123040","35.37","Gas","190437303","09/03/2018","Corporate Asset Management","Central Utilities to Recharge","R2101"
"Wolverhampton City Council","http://opendatacommunities.org/id/metropolitan-district-council/wolverhampton","708251","Total Gas & Power Limited","166078929","618.95","Gas","190437297","09/03/2018","Schools","St Luke�s Church of England Aided Primary School","R2101"
"Wolverhampton City Council","http://opendatacommunities.org/id/metropolitan-district-council/wolverhampton","708251","Total Gas & Power Limited","166123611","550.55","Gas","190437357","09/03/2018","Corporate Asset Management","Central Utilities to Recharge","R2101"
"Wolverhampton City Council","http://opendatacommunities.org/id/metropolitan-district-council/wolverhampton","708251","Total Gas & Power Limited","166124293","284.32","Gas","190437425","09/03/2018","Corporate Asset Management","Central Utilities to Recharge","R2101"
"Wolverhampton City Council","http://opendatacommunities.org/id/metropolitan-district-council/wolverhampton","708251","Total Gas & Power Limited","166124502","530.59","Gas","190437446","09/03/2018","Schools","Bilston Nursery","R2101"
"Wolverhampton City Council","http://opendatacommunities.org/id/metropolitan-district-council/wolverhampton","708251","Total Gas & Power Limited","166124470","1,077.07","Gas","190437443","09/03/2018","Corporate Asset Management","Central Utilities to Recharge","R2101"
"Wolverhampton City Council","http://opendatacommunities.org/id/metropolitan-district-council/wolverhampton","708251","Total Gas & Power Limited","166124458","470.51","Gas","190437441","09/03/2018","Corporate Asset Management","Central Utilities to Recharge","R2101"
"Wolverhampton City Council","http://opendatacommunities.org/id/metropolitan-district-council/wolverhampton","708251","Total Gas & Power Limited","166159614a","910.13","Electricity","190440114","23/03/2018","Corporate Asset Management","Central Utilities to Recharge","R2100"
"Wolverhampton City Council","http://opendatacommunities.org/id/metropolitan-district-council/wolverhampton","708251","Total Gas & Power Limited","165310876a","591.63","Electricity","190440098","23/03/2018","Corporate Asset Management","Central Utilities to Recharge","R2100"
"Wolverhampton City Council","http://opendatacommunities.org/id/metropolitan-district-council/wolverhampton","708251","Total Gas & Power Limited","166159493a","165.88","Electricity","190440113","23/03/2018","Corporate Asset Management","Central Utilities to Recharge","R2100"
"Wolverhampton City Council","http://opendatacommunities.org/id/metropolitan-district-council/wolverhampton","708251","Total Gas & Power Limited","166183561a","30.93","Electricity","190440046","23/03/2018","Corporate Asset Management","Central Utilities to Recharge","R2100"
"Wolverhampton City Council","http://opendatacommunities.org/id/metropolitan-district-council/wolverhampton","708251","Total Gas & Power Limited","166173826a","153.57","Electricity","190440132","23/03/2018","Corporate Asset Management","Central Utilities to Recharge","R2100"
"Wolverhampton City Council","http://opendatacommunities.org/id/metropolitan-district-council/wolverhampton","708251","Total Gas & Power Limited","166169998a","677.64","Electricity","190440122","23/03/2018","Schools","Christ Church (Church of England) Junior School","R2100"
"Wolverhampton City Council","http://opendatacommunities.org/id/metropolitan-district-council/wolverhampton","708251","Total Gas & Power Limited","166365040a","1,162.22","Electricity","190440204","23/03/2018","Corporate Asset Management","Central Utilities to Recharge","R2100"
"Wolverhampton City Council","http://opendatacommunities.org/id/metropolitan-district-council/wolverhampton","708251","Total Gas & Power Limited","166365963a","1,585.96","Electricity","190440216","23/03/2018","Schools","St Luke�s Church of England Aided Primary School","R2100"
"Wolverhampton City Council","http://opendatacommunities.org/id/metropolitan-district-council/wolverhampton","708251","Total Gas & Power Limited","166366018a","6,371.49","Electricity","190440218","23/03/2018","Schools","Stowheath Primary School","R2100"
"Wolverhampton City Council","http://opendatacommunities.org/id/metropolitan-district-council/wolverhampton","708251","Total Gas & Power Limited","166366095a","3,412.47","Electricity","190440224","23/03/2018","Schools","St Anthony�s Catholic Primary School","R2100"
"Wolverhampton City Council","http://opendatacommunities.org/id/metropolitan-district-council/wolverhampton","708251","Total Gas & Power Limited","166183319a","773.98","Electricity","190440167","23/03/2018","Corporate Asset Management","Central Utilities to Recharge","R2100"
"Wolverhampton City Council","http://opendatacommunities.org/id/metropolitan-district-council/wolverhampton","708251","Total Gas & Power Limited","166197795a","207.68","Electricity","190440173","23/03/2018","Corporate Asset Management","Central Utilities to Recharge","R2100"
"Wolverhampton City Council","http://opendatacommunities.org/id/metropolitan-district-council/wolverhampton","708251","Total Gas & Power Limited","166182770a","668.91","Electricity","190440147","23/03/2018","Corporate Asset Management","Central Utilities to Recharge","R2100"
"Wolverhampton City Council","http://opendatacommunities.org/id/metropolitan-district-council/wolverhampton","708251","Total Gas & Power Limited","166174541a","443.36","Electricity","190440139","23/03/2018","Corporate Asset Management","Central Utilities to Recharge","R2100"
"Wolverhampton City Council","http://opendatacommunities.org/id/metropolitan-district-council/wolverhampton","708251","Total Gas & Power Limited","166183264a","2,917.03","Electricity","190440163","23/03/2018","Corporate Asset Management","Central Utilities to Recharge","R2100"
"Wolverhampton City Council","http://opendatacommunities.org/id/metropolitan-district-council/wolverhampton","708251","Total Gas & Power Limited","166232885a","159.89","Electricity","190440185","23/03/2018","Schools","Long Knowle Primary School","R2100"
"Wolverhampton City Council","http://opendatacommunities.org/id/metropolitan-district-council/wolverhampton","708251","Total Gas & Power Limited","166233260a","353.93","Electricity","190440190","23/03/2018","Corporate Asset Management","Central Utilities to Recharge","R2100"
"Wolverhampton City Council","http://opendatacommunities.org/id/metropolitan-district-council/wolverhampton","708251","Total Gas & Power Limited","166174409a","367.76","Electricity","190440020","23/03/2018","Corporate Asset Management","Central Utilities to Recharge","R2100"
"Wolverhampton City Council","http://opendatacommunities.org/id/metropolitan-district-council/wolverhampton","708251","Total Gas & Power Limited","166233072a","750.45","Electricity","190440188","23/03/2018","Corporate Asset Management","Central Utilities to Recharge","R2100"
"Wolverhampton City Council","http://opendatacommunities.org/id/metropolitan-district-council/wolverhampton","708251","Total Gas & Power Limited","166233204a","267.18","Electricity","190440189","23/03/2018","Schools","Phoenix Nursery","R2100"
"Wolverhampton City Council","http://opendatacommunities.org/id/metropolitan-district-council/wolverhampton","708251","Total Gas & Power Limited","166182747a","1,398.16","Electricity","190440029","23/03/2018","Corporate Asset Management","Central Utilities to Recharge","R2100"
"Wolverhampton City Council","http://opendatacommunities.org/id/metropolitan-district-council/wolverhampton","708251","Total Gas & Power Limited","166365380a","125.71","Electricity","190440210","23/03/2018","Corporate Asset Management","Central Utilities to Recharge","R2100"
"Wolverhampton City Council","http://opendatacommunities.org/id/metropolitan-district-council/wolverhampton","708251","Total Gas & Power Limited","166366271a","1,722.81","Electricity","190440236","23/03/2018","Corporate Asset Management","Central Utilities to Recharge","R2100"
"Wolverhampton City Council","http://opendatacommunities.org/id/metropolitan-district-council/wolverhampton","708251","Total Gas & Power Limited","166366073a","4,670.46","Electricity","190440222","23/03/2018","Schools","Rakegate Primary School","R2100"
"Wolverhampton City Council","http://opendatacommunities.org/id/metropolitan-district-council/wolverhampton","708251","Total Gas & Power Limited","166199270a","239.41","Electricity","190440181","23/03/2018","Corporate Asset Management","Central Utilities to Recharge","R2100"
"Wolverhampton City Council","http://opendatacommunities.org/id/metropolitan-district-council/wolverhampton","708251","Total Gas & Power Limited","166365325a","224.33","Electricity","190440208","23/03/2018","Corporate Asset Management","Central Utilities to Recharge","R2100"
"Wolverhampton City Council","http://opendatacommunities.org/id/metropolitan-district-council/wolverhampton","708251","Total Gas & Power Limited","166365259a","570.41","Electricity","190440207","23/03/2018","Corporate Asset Management","Central Utilities to Recharge","R2100"
"Wolverhampton City Council","http://opendatacommunities.org/id/metropolitan-district-council/wolverhampton","708251","Total Gas & Power Limited","166365370a","383.10","Electricity","190440209","23/03/2018","Schools","Wilkinson Primary School","R2100"
"Wolverhampton City Council","http://opendatacommunities.org/id/metropolitan-district-council/wolverhampton","708251","Total Gas & Power Limited","166365226a","156.52","Electricity","190440206","23/03/2018","Corporate Asset Management","Central Utilities to Recharge","R2100"
"Wolverhampton City Council","http://opendatacommunities.org/id/metropolitan-district-council/wolverhampton","708251","Total Gas & Power Limited","166199357a","186.50","Electricity","190440183","23/03/2018","Corporate Asset Management","Central Utilities to Recharge","R2100"
"Wolverhampton City Council","http://opendatacommunities.org/id/metropolitan-district-council/wolverhampton","708251","Total Gas & Power Limited","166233358a","16.76","Electricity","190440070","23/03/2018","Corporate Asset Management","Central Utilities to Recharge","R2100"
"Wolverhampton City Council","http://opendatacommunities.org/id/metropolitan-district-council/wolverhampton","708251","Total Gas & Power Limited","166233963a","13.49","Electricity","190440074","23/03/2018","Transportation","Bridges & Subways","R2100"
"Wolverhampton City Council","http://opendatacommunities.org/id/metropolitan-district-council/wolverhampton","708251","Total Gas & Power Limited","166232951a","20.17","Electricity","190440068","23/03/2018","Housing Revenue Account","Hostels / Outreach","R2100"
"Wolverhampton City Council","http://opendatacommunities.org/id/metropolitan-district-council/wolverhampton","708251","Total Gas & Power Limited","166234018a","54.36","Electricity","190440076","23/03/2018","Corporate Asset Management","Central Utilities to Recharge","R2100"
"Wolverhampton City Council","http://opendatacommunities.org/id/metropolitan-district-council/wolverhampton","708251","Total Gas & Power Limited","166174563a","74.47","Electricity","190440024","23/03/2018","Schools","Bilston Church of England Primary School","R2100"
"Wolverhampton City Council","http://opendatacommunities.org/id/metropolitan-district-council/wolverhampton","708251","Total Gas & Power Limited","166173628a","13.90","Electricity","190440012","23/03/2018","Housing Revenue Account","Hostels / Outreach","R2100"
"Wolverhampton City Council","http://opendatacommunities.org/id/metropolitan-district-council/wolverhampton","708251","Total Gas & Power Limited","166365523a","44.78","Electricity","190440088","23/03/2018","Corporate Asset Management","Central Utilities to Recharge","R2100"
"Wolverhampton City Council","http://opendatacommunities.org/id/metropolitan-district-council/wolverhampton","708251","Total Gas & Power Limited","166158570a","403.28","Electricity","190440101","23/03/2018","Schools","St Luke�s Church of England Aided Primary School","R2100"
"Wolverhampton City Council","http://opendatacommunities.org/id/metropolitan-district-council/wolverhampton","708251","Total Gas & Power Limited","166286488a","28.35","Electricity","190440079","23/03/2018","Corporate Asset Management","Central Utilities to Recharge","R2100"
"Wolverhampton City Council","http://opendatacommunities.org/id/metropolitan-district-council/wolverhampton","708251","Total Gas & Power Limited","166287049a","859.88","Electricity","190440203","23/03/2018","Corporate Asset Management","Central Utilities to Recharge","R2100"
"Wolverhampton City Council","http://opendatacommunities.org/id/metropolitan-district-council/wolverhampton","708251","Total Gas & Power Limited","166197894a","68.55","Electricity","190440054","23/03/2018","Corporate Asset Management","Central Utilities to Recharge","R2100"
"Wolverhampton City Council","http://opendatacommunities.org/id/metropolitan-district-council/wolverhampton","708251","Total Gas & Power Limited","166182956a","45.94","Electricity","190440034","23/03/2018","Schools","St Thomas� Church of England Primary School","R2100"
"Wolverhampton City Council","http://opendatacommunities.org/id/metropolitan-district-council/wolverhampton","708251","Total Gas & Power Limited","166183495a","40.83","Electricity","190440043","23/03/2018","Corporate Asset Management","Central Utilities to Recharge","R2100"
"Wolverhampton City Council","http://opendatacommunities.org/id/metropolitan-district-council/wolverhampton","708251","Total Gas & Power Limited","166198257a","458.74","Electricity","190440057","23/03/2018","Corporate Asset Management","Central Utilities to Recharge","R2100"
"Wolverhampton City Council","http://opendatacommunities.org/id/metropolitan-district-council/wolverhampton","708251","Total Gas & Power Limited","166183583a","90.59","Electricity","190440047","23/03/2018","Corporate Asset Management","Central Utilities to Recharge","R2100"
"Wolverhampton City Council","http://opendatacommunities.org/id/metropolitan-district-council/wolverhampton","708251","Total Gas & Power Limited","166173837a","60.93","Electricity","190440015","23/03/2018","Corporate Asset Management","Central Utilities to Recharge","R2100"
"Wolverhampton City Council","http://opendatacommunities.org/id/metropolitan-district-council/wolverhampton","708251","Total Gas & Power Limited","166197663a","77.65","Electricity","190440050","23/03/2018","Corporate Asset Management","Central Utilities to Recharge","R2100"
"Wolverhampton City Council","http://opendatacommunities.org/id/metropolitan-district-council/wolverhampton","708251","Total Gas & Power Limited","166173683a","12.71","Electricity","190440014","23/03/2018","Corporate Asset Management","Central Utilities to Recharge","R2100"
"Wolverhampton City Council","http://opendatacommunities.org/id/metropolitan-district-council/wolverhampton","708251","Total Gas & Power Limited","166159163a","7.75","Electricity","190439990","23/03/2018","Corporate Asset Management","Central Utilities to Recharge","R2100"
"Wolverhampton City Council","http://opendatacommunities.org/id/metropolitan-district-council/wolverhampton","708251","Total Gas & Power Limited","166170702a","220.45","Electricity","190440007","23/03/2018","Corporate Asset Management","Central Utilities to Recharge","R2100"
"Wolverhampton City Council","http://opendatacommunities.org/id/metropolitan-district-council/wolverhampton","708251","Total Gas & Power Limited","166174728a","107.88","Electricity","190440027","23/03/2018","Corporate Asset Management","Central Utilities to Recharge","R2100"
"Wolverhampton City Council","http://opendatacommunities.org/id/metropolitan-district-council/wolverhampton","708251","Total Gas & Power Limited","166160065a","15.05","Electricity","190440002","23/03/2018","Schools","Uplands Junior School","R2100"
"Wolverhampton City Council","http://opendatacommunities.org/id/metropolitan-district-council/wolverhampton","708251","Total Gas & Power Limited","166159152a","62.36","Electricity","190439989","23/03/2018","Corporate Asset Management","Central Utilities to Recharge","R2100"
"Wolverhampton City Council","http://opendatacommunities.org/id/metropolitan-district-council/wolverhampton","708251","Total Gas & Power Limited","166365974a","248.47","Electricity","190440093","23/03/2018","Corporate Asset Management","Central Utilities to Recharge","R2100"
"Wolverhampton City Council","http://opendatacommunities.org/id/metropolitan-district-council/wolverhampton","708251","Total Gas & Power Limited","166160054a","261.05","Electricity","190440118","23/03/2018","Facilities Management","Management of Vacant Properties","R2100"
"Wolverhampton City Council","http://opendatacommunities.org/id/metropolitan-district-council/wolverhampton","708251","Total Gas & Power Limited","3004744765-TGP102","195.89","Electricity","190430775","07/03/2018","Housing Revenue Account","Hostels / Outreach","R2100"
"Wolverhampton City Council","http://opendatacommunities.org/id/metropolitan-district-council/wolverhampton","708251","Total Gas & Power Limited","3004745062-TGP101","459.12","Electricity","190430774","07/03/2018","Housing Revenue Account","Hostels / Outreach","R2100"
"Wolverhampton City Council","http://opendatacommunities.org/id/metropolitan-district-council/wolverhampton","708251","Total Gas & Power Limited","3004742818-TGP104","679.43","Electricity","190430777","07/03/2018","Housing Revenue Account","Hostels / Outreach","R2100"
"Wolverhampton City Council","http://opendatacommunities.org/id/metropolitan-district-council/wolverhampton","708251","Total Gas & Power Limited","166123963","161.67","Gas","190437392","09/03/2018","Corporate Asset Management","Central Utilities to Recharge","R2101"
"Wolverhampton City Council","http://opendatacommunities.org/id/metropolitan-district-council/wolverhampton","708251","Total Gas & Power Limited","166123721","111.14","Gas","190437368","09/03/2018","Corporate Asset Management","Central Utilities to Recharge","R2101"
"Wolverhampton City Council","http://opendatacommunities.org/id/metropolitan-district-council/wolverhampton","708251","Total Gas & Power Limited","166123886","311.40","Gas","190437384","09/03/2018","Facilities Management","Management of Vacant Properties","R2101"
"Wolverhampton City Council","http://opendatacommunities.org/id/metropolitan-district-council/wolverhampton","708251","Total Gas & Power Limited","166123809","47.27","Gas","190437376","09/03/2018","Corporate Asset Management","Central Utilities to Recharge","R2101"
"Wolverhampton City Council","http://opendatacommunities.org/id/metropolitan-district-council/wolverhampton","708251","Total Gas & Power Limited","166366128a","2,488.13","Electricity","190440227","23/03/2018","Corporate Asset Management","Central Utilities to Recharge","R2100"
"Wolverhampton City Council","http://opendatacommunities.org/id/metropolitan-district-council/wolverhampton","708251","Total Gas & Power Limited","166173320a","317.15","Electricity","190440127","23/03/2018","Schools","Goldthorn Park Primary School","R2100"
"Wolverhampton City Council","http://opendatacommunities.org/id/metropolitan-district-council/wolverhampton","708251","Total Gas & Power Limited","166183231a","304.68","Electricity","190440160","23/03/2018","Corporate Asset Management","Central Utilities to Recharge","R2100"
"Wolverhampton City Council","http://opendatacommunities.org/id/metropolitan-district-council/wolverhampton","708251","Total Gas & Power Limited","166183528a","1,064.98","Electricity","190440169","23/03/2018","Corporate Asset Management","Central Utilities to Recharge","R2100"
"Wolverhampton City Council","http://opendatacommunities.org/id/metropolitan-district-council/wolverhampton","708251","Total Gas & Power Limited","166183627a","1,496.21","Electricity","190440172","23/03/2018","Schools","Penn Hall Special School","R2100"
"Wolverhampton City Council","http://opendatacommunities.org/id/metropolitan-district-council/wolverhampton","708251","Total Gas & Power Limited","166366051a","39,103.10","Electricity","190440221","23/03/2018","Corporate Asset Management","Central Utilities to Recharge","R2100"
"Wolverhampton City Council","http://opendatacommunities.org/id/metropolitan-district-council/wolverhampton","708251","Total Gas & Power Limited","166183187a","1,480.70","Electricity","190440158","23/03/2018","Corporate Asset Management","Central Utilities to Recharge","R2100"
"Wolverhampton City Council","http://opendatacommunities.org/id/metropolitan-district-council/wolverhampton","708251","Total Gas & Power Limited","166199093a","147.75","Electricity","190440064","23/03/2018","Schools","Wodensfield Primary School","R2100"
"Wolverhampton City Council","http://opendatacommunities.org/id/metropolitan-district-council/wolverhampton","708251","Total Gas & Power Limited","166159372a","32.51","Electricity","190439994","23/03/2018","Corporate Asset Management","Central Utilities to Recharge","R2100"
"Wolverhampton City Council","http://opendatacommunities.org/id/metropolitan-district-council/wolverhampton","708251","Total Gas & Power Limited","166124414","28.34","Gas","190437437","09/03/2018","Facilities Management","Management of Vacant Properties","R2101"
"Wolverhampton City Council","http://opendatacommunities.org/id/metropolitan-district-council/wolverhampton","708251","Total Gas & Power Limited","166123501","213.51","Gas","190437346","09/03/2018","Corporate Asset Management","Central Utilities to Recharge","R2101"
"Wolverhampton City Council","http://opendatacommunities.org/id/metropolitan-district-council/wolverhampton","708251","Total Gas & Power Limited","166123402","85.67","Gas","190437336","09/03/2018","Schools","Castlecroft Primary School","R2101"
"Wolverhampton City Council","http://opendatacommunities.org/id/metropolitan-district-council/wolverhampton","708251","Total Gas & Power Limited","166123600","451.65","Gas","190437356","09/03/2018","Schools","St Alban�s Church of England Primary School","R2101"
"Wolverhampton City Council","http://opendatacommunities.org/id/metropolitan-district-council/wolverhampton","708251","Total Gas & Power Limited","161355276C","-37.35","Gas","190437234","09/03/2018","Facilities Management","Management of Vacant Properties","R2101"
"Wolverhampton City Council","http://opendatacommunities.org/id/metropolitan-district-council/wolverhampton","708251","Total Gas & Power Limited","164575890C","-42.34","Gas","190437236","09/03/2018","Facilities Management","Management of Vacant Properties","R2101"
"Wolverhampton City Council","http://opendatacommunities.org/id/metropolitan-district-council/wolverhampton","708251","Total Gas & Power Limited","166078600","3,178.13","Gas","190437266","09/03/2018","Corporate Asset Management","Central Utilities to Recharge","R2101"
"Wolverhampton City Council","http://opendatacommunities.org/id/metropolitan-district-council/wolverhampton","708251","Total Gas & Power Limited","166070558","175.67","Gas","190437249","09/03/2018","Corporate Asset Management","Central Utilities to Recharge","R2101"
"Wolverhampton City Council","http://opendatacommunities.org/id/metropolitan-district-council/wolverhampton","708251","Total Gas & Power Limited","166070503","35.37","Gas","190437244","09/03/2018","Corporate Asset Management","Central Utilities to Recharge","R2101"
"Wolverhampton City Council","http://opendatacommunities.org/id/metropolitan-district-council/wolverhampton","708251","Total Gas & Power Limited","166124140","370.44","Gas","190437410","09/03/2018","Corporate Asset Management","Central Utilities to Recharge","R2101"
"Wolverhampton City Council","http://opendatacommunities.org/id/metropolitan-district-council/wolverhampton","708251","Total Gas & Power Limited","166124205","49.19","Gas","190437416","09/03/2018","Corporate Asset Management","Central Utilities to Recharge","R2101"
"Wolverhampton City Council","http://opendatacommunities.org/id/metropolitan-district-council/wolverhampton","708251","Total Gas & Power Limited","166124282","3,703.56","Gas","190437424","09/03/2018","Corporate Asset Management","Central Utilities to Recharge","R2101"
"Wolverhampton City Council","http://opendatacommunities.org/id/metropolitan-district-council/wolverhampton","708251","Total Gas & Power Limited","166078544","568.17","Gas","190437260","09/03/2018","Schools","West Park Primary School","R2101"
"Wolverhampton City Council","http://opendatacommunities.org/id/metropolitan-district-council/wolverhampton","708251","Total Gas & Power Limited","166123281","116.23","Gas","190437325","09/03/2018","Corporate Asset Management","Central Utilities to Recharge","R2101"
"Wolverhampton City Council","http://opendatacommunities.org/id/metropolitan-district-council/wolverhampton","708251","Total Gas & Power Limited","166078511","574.43","Gas","190437257","09/03/2018","Schools","Wodensfield Primary School","R2101"
"Wolverhampton City Council","http://opendatacommunities.org/id/metropolitan-district-council/wolverhampton","708251","Total Gas & Power Limited","166123160","694.65","Gas","190437315","09/03/2018","Schools","Fallings Park Primary School","R2101"
"Wolverhampton City Council","http://opendatacommunities.org/id/metropolitan-district-council/wolverhampton","708251","Total Gas & Power Limited","166078973","810.40","Gas","190437302","09/03/2018","Corporate Asset Management","Central Utilities to Recharge","R2101"
"Wolverhampton City Council","http://opendatacommunities.org/id/metropolitan-district-council/wolverhampton","708251","Total Gas & Power Limited","166123072","30.51","Gas","190437306","09/03/2018","Corporate Asset Management","Central Utilities to Recharge","R2101"
"Wolverhampton City Council","http://opendatacommunities.org/id/metropolitan-district-council/wolverhampton","708251","Total Gas & Power Limited","166123116","280.32","Gas","190437310","09/03/2018","Schools","St Andrews Church of England Primary School","R2101"
"Wolverhampton City Council","http://opendatacommunities.org/id/metropolitan-district-council/wolverhampton","708251","Total Gas & Power Limited","166078874","311.31","Gas","190437292","09/03/2018","Schools","St Thomas� Church of England Primary School","R2101"
"Wolverhampton City Council","http://opendatacommunities.org/id/metropolitan-district-council/wolverhampton","708251","Total Gas & Power Limited","166078918","461.96","Gas","190437296","09/03/2018","Schools","Merridale Primary School","R2101"
"Wolverhampton City Council","http://opendatacommunities.org/id/metropolitan-district-council/wolverhampton","708251","Total Gas & Power Limited","166124084","403.93","Gas","190437404","09/03/2018","Schools","Whitgreave Infant School","R2101"
"Wolverhampton City Council","http://opendatacommunities.org/id/metropolitan-district-council/wolverhampton","708251","Total Gas & Power Limited","166124469","593.40","Gas","190437442","09/03/2018","Corporate Asset Management","Central Utilities to Recharge","R2101"
"Wolverhampton City Council","http://opendatacommunities.org/id/metropolitan-district-council/wolverhampton","708251","Total Gas & Power Limited","166124447","110.41","Gas","190437440","09/03/2018","Corporate Asset Management","Central Utilities to Recharge","R2101"
"Wolverhampton City Council","http://opendatacommunities.org/id/metropolitan-district-council/wolverhampton","708251","Total Gas & Power Limited","166124381","343.10","Gas","190437434","09/03/2018","Corporate Asset Management","Central Utilities to Recharge","R2101"
"Wolverhampton City Council","http://opendatacommunities.org/id/metropolitan-district-council/wolverhampton","708252","Total Hygiene Limited","16/0754/DFG","4,093.50","Grants paid out","190437894","21/03/2018","","Disabled Facilities Grants","C5000"
"Wolverhampton City Council","http://opendatacommunities.org/id/metropolitan-district-council/wolverhampton","708306","Treka Bus Limited","UMT0008305","52.08","Equipment - Purchase","190437070","21/03/2018","Fleet Services","Fleet Management","R4000"
"Wolverhampton City Council","http://opendatacommunities.org/id/metropolitan-district-council/wolverhampton","708320","Trinity Ce Primary School Fund","EYPP Spring 2018","3,339.00","TPP - Private Nursery Education Funding","190441753","26/03/2018","Early Years","Early Years Pupil Premium","R5035"
"Wolverhampton City Council","http://opendatacommunities.org/id/metropolitan-district-council/wolverhampton","708323","Trinity High School & Sixth Form Ctr","P16852020180316","650.00","Grant Payments to Individuals","190437072","21/03/2018","Looked After Children","LAC Education Team (LACE)","R6402"
"Wolverhampton City Council","http://opendatacommunities.org/id/metropolitan-district-council/wolverhampton","708350","TES Global Limited","INVTES00062650","1,111.24","Staff Advertising Costs","130208549","14/03/2018","Standards and Vulnerable Pupils","LEP-Leadership & Management Programme","R1700"
"Wolverhampton City Council","http://opendatacommunities.org/id/metropolitan-district-council/wolverhampton","708350","TES Global Limited","INVTES00062648","1,111.24","Staff Advertising Costs","130208547","14/03/2018","Standards and Vulnerable Pupils","LEP-Leadership & Management Programme","R1700"
"Wolverhampton City Council","http://opendatacommunities.org/id/metropolitan-district-council/wolverhampton","708350","TES Global Limited","INVTES00062649","1,111.24","Staff Advertising Costs","130208548","14/03/2018","Standards and Vulnerable Pupils","LEP-Leadership & Management Programme","R1700"
"Wolverhampton City Council","http://opendatacommunities.org/id/metropolitan-district-council/wolverhampton","708356","Tudor Environmental","211944","308.40","Materials","130209065","14/03/2018","Environmental Maintenance","Ground Maintenance East","R4007"
"Wolverhampton City Council","http://opendatacommunities.org/id/metropolitan-district-council/wolverhampton","708356","Tudor Environmental","211944","90.00","Materials","130209065","14/03/2018","Environmental Maintenance","Ground Maintenance East","R4007"
"Wolverhampton City Council","http://opendatacommunities.org/id/metropolitan-district-council/wolverhampton","708356","Tudor Environmental","211944","99.60","Materials","130209065","14/03/2018","Environmental Maintenance","Ground Maintenance East","R4007"
"Wolverhampton City Council","http://opendatacommunities.org/id/metropolitan-district-council/wolverhampton","708356","Tudor Environmental","212318","245.75","Equipment - Purchase","130209445","21/03/2018","Environmental Maintenance","Direct Schools","R4000"
"Wolverhampton City Council","http://opendatacommunities.org/id/metropolitan-district-council/wolverhampton","708356","Tudor Environmental","210859","162.00","Materials","130207554","02/03/2018","Environmental Maintenance","Ground Maintenance East","R4007"
"Wolverhampton City Council","http://opendatacommunities.org/id/metropolitan-district-council/wolverhampton","708356","Tudor Environmental","211293","26.12","Equipment - Purchase","130208059","07/03/2018","Environmental Maintenance","Parks / Open Spaces - Repairs & Maintenance","R4000"
"Wolverhampton City Council","http://opendatacommunities.org/id/metropolitan-district-council/wolverhampton","708356","Tudor Environmental","211293","54.08","Equipment - Purchase","130208059","07/03/2018","Environmental Maintenance","Parks / Open Spaces - Repairs & Maintenance","R4000"
"Wolverhampton City Council","http://opendatacommunities.org/id/metropolitan-district-council/wolverhampton","708356","Tudor Environmental","211293","30.50","Equipment - Purchase","130208059","07/03/2018","Environmental Maintenance","Parks / Open Spaces - Repairs & Maintenance","R4000"
"Wolverhampton City Council","http://opendatacommunities.org/id/metropolitan-district-council/wolverhampton","708356","Tudor Environmental","211293","5.85","Equipment - Purchase","130208059","07/03/2018","Environmental Maintenance","Parks / Open Spaces - Repairs & Maintenance","R4000"
"Wolverhampton City Council","http://opendatacommunities.org/id/metropolitan-district-council/wolverhampton","708358","Tunstall Healthcare (UK) Limited","31N/10313968","9,792.00","Equipment - Purchase","130208060","21/03/2018","Independent Living Service","Telecare","R4000"
"Wolverhampton City Council","http://opendatacommunities.org/id/metropolitan-district-council/wolverhampton","708358","Tunstall Healthcare (UK) Limited","3IN/10313049","4,080.00","Equipment - Purchase","130206216","07/03/2018","Independent Living Service","Telecare","R4000"
"Wolverhampton City Council","http://opendatacommunities.org/id/metropolitan-district-council/wolverhampton","708358","Tunstall Healthcare (UK) Limited","3IN/10313596","5,712.00","Equipment - Purchase","130207432","16/03/2018","Independent Living Service","Telecare","R4000"
"Wolverhampton City Council","http://opendatacommunities.org/id/metropolitan-district-council/wolverhampton","708368","Twinkle Stars Day Nursery","NEF Spring 2018 INST 2","5,943.15","TPP - Private Nursery Education Funding","190439901","23/03/2018","Early Years","Early Years Universal Entitlement for 3 and 4 Year Olds","R5035"
"Wolverhampton City Council","http://opendatacommunities.org/id/metropolitan-district-council/wolverhampton","708368","Twinkle Stars Day Nursery","Enhanced Funding L M Brittain Spring 2018","1,000.00","TPP - Private Nursery Education Funding","190439920","23/03/2018","Early Years","Early Years SEN Inclusion Fund","R5035"
"Wolverhampton City Council","http://opendatacommunities.org/id/metropolitan-district-council/wolverhampton","708368","Twinkle Stars Day Nursery","Enhanced Funding L M Brittain Autumn 2017","1,000.00","TPP - Private Nursery Education Funding","190439913","23/03/2018","Early Years","Early Years SEN Inclusion Fund","R5035"
"Wolverhampton City Council","http://opendatacommunities.org/id/metropolitan-district-council/wolverhampton","708368","Twinkle Stars Day Nursery","TFT Spring 2018 Inst 2","1,461.44","TPP - Private Nursery Education Funding","190439893","23/03/2018","Early Years","Early Years Entitlement Funding for Disadvantaged 2 Year Olds","R5035"
"Wolverhampton City Council","http://opendatacommunities.org/id/metropolitan-district-council/wolverhampton","708373","Tyco Integrated Fire & Security","TY025265","15,772.93","Plant, Equipment, Machinery & Computer Hardware","130210521","23/03/2018","","Integrated Transport","C3000"
"Wolverhampton City Council","http://opendatacommunities.org/id/metropolitan-district-council/wolverhampton","708373","Tyco Integrated Fire & Security","TY025312","25,832.01","Plant, Equipment, Machinery & Computer Hardware","130207704","07/03/2018","","Integrated Transport","C3000"
"Wolverhampton City Council","http://opendatacommunities.org/id/metropolitan-district-council/wolverhampton","708373","Tyco Integrated Fire & Security","TY025438","21,686.00","Equipment - R & M","130210749","26/03/2018","Operation & Maintenance of Existing Network","Traffic Signals","R4003"
"Wolverhampton City Council","http://opendatacommunities.org/id/metropolitan-district-council/wolverhampton","708374","Tyddyn Hen Limited","203649","193.29","Provisions (Not for resale)","130208424","26/03/2018","School Planning & Resources","Towers Outdoor Education Centre","R4101"
"Wolverhampton City Council","http://opendatacommunities.org/id/metropolitan-district-council/wolverhampton","708375","Tylers Of Bilston Limited","428985","320.83","Equipment - Catering","130208061","16/03/2018","Learning Disability Provider","Duke Street Bungalows","R4010"
"Wolverhampton City Council","http://opendatacommunities.org/id/metropolitan-district-council/wolverhampton","708377","Tynetec Limited","0000168475","4,408.00","Equipment - Purchase","130209774","21/03/2018","Independent Living Service","Telecare","R4000"
"Wolverhampton City Council","http://opendatacommunities.org/id/metropolitan-district-council/wolverhampton","708377","Tynetec Limited","0000172047","40.00","Equipment - Purchase","130209613","21/03/2018","Independent Living Service","Telecare","R4000"
"Wolverhampton City Council","http://opendatacommunities.org/id/metropolitan-district-council/wolverhampton","708377","Tynetec Limited","0000170738","717.40","Equipment - Purchase","130210940","26/03/2018","Independent Living Service","Telecare","R4000"
"Wolverhampton City Council","http://opendatacommunities.org/id/metropolitan-district-council/wolverhampton","708377","Tynetec Limited","0000170738","600.00","Equipment - Purchase","130210940","26/03/2018","Independent Living Service","Telecare","R4000"
"Wolverhampton City Council","http://opendatacommunities.org/id/metropolitan-district-council/wolverhampton","708377","Tynetec Limited","0000170738","518.80","Equipment - Purchase","130210940","26/03/2018","Independent Living Service","Telecare","R4000"
"Wolverhampton City Council","http://opendatacommunities.org/id/metropolitan-district-council/wolverhampton","708377","Tynetec Limited","0000170738","1,923.40","Equipment - Purchase","130210940","26/03/2018","Independent Living Service","Telecare","R4000"
"Wolverhampton City Council","http://opendatacommunities.org/id/metropolitan-district-council/wolverhampton","708379","U.C.A.S.","F1119972","440.79","Exam Expenses (Non-Employee)","130208891","21/03/2018","Adult Education","24+ Advanced Learning Loan","R4630"
"Wolverhampton City Council","http://opendatacommunities.org/id/metropolitan-district-council/wolverhampton","708402","Ulverscroft Large Print Books Limited","I620761","281.34","Books","130207555","02/03/2018","Strategic Organisation Development","Global Budgets","R4309"
"Wolverhampton City Council","http://opendatacommunities.org/id/metropolitan-district-council/wolverhampton","708402","Ulverscroft Large Print Books Limited","I621200","175.64","Books","130207138","14/03/2018","Strategic Organisation Development","Global Budgets","R4309"
"Wolverhampton City Council","http://opendatacommunities.org/id/metropolitan-district-council/wolverhampton","708402","Ulverscroft Large Print Books Limited","I620765","18.05","Books","130207556","14/03/2018","Strategic Organisation Development","Global Budgets","R4309"
"Wolverhampton City Council","http://opendatacommunities.org/id/metropolitan-district-council/wolverhampton","708405","Unicef","SI0008722","5,800.00","TPP - Public Health Contracts","130207433","16/03/2018","Contracts","Healthy Start to Life","R5060"
"Wolverhampton City Council","http://opendatacommunities.org/id/metropolitan-district-council/wolverhampton","708418","Univar Limited","91456416","331.61","Materials","130210082","23/03/2018","Leisure Services","Bert Williams Leisure Centre","R4007"
"Wolverhampton City Council","http://opendatacommunities.org/id/metropolitan-district-council/wolverhampton","708418","Univar Limited","91453247","108.10","Materials","130207705","21/03/2018","Leisure Services","Bert Williams Leisure Centre","R4007"
"Wolverhampton City Council","http://opendatacommunities.org/id/metropolitan-district-council/wolverhampton","708418","Univar Limited","91417263","588.90","Materials","130210079","23/03/2018","Leisure Services","Central Baths","R4007"
"Wolverhampton City Council","http://opendatacommunities.org/id/metropolitan-district-council/wolverhampton","708418","Univar Limited","91440833","179.20","Materials","130205902","02/03/2018","Leisure Services","Central Baths","R4007"
"Wolverhampton City Council","http://opendatacommunities.org/id/metropolitan-district-council/wolverhampton","708418","Univar Limited","91418363","86.84","Materials","130210080","23/03/2018","Leisure Services","Central Baths","R4007"
"Wolverhampton City Council","http://opendatacommunities.org/id/metropolitan-district-council/wolverhampton","708418","Univar Limited","91436200","443.67","Materials","130210081","23/03/2018","Leisure Services","Bert Williams Leisure Centre","R4007"
"Wolverhampton City Council","http://opendatacommunities.org/id/metropolitan-district-council/wolverhampton","708421","University Hospitals Birmingham","0P/T104381","312.50","Services - Professional Fees","130206849","07/03/2018","Democratic Services","Coroners Service","R4400"
"Wolverhampton City Council","http://opendatacommunities.org/id/metropolitan-district-council/wolverhampton","708422","University Of Birmingham","AEBF200./24495","2,040.00","Training Expenses","130209252","26/03/2018","Human Resources","Social Work Qualifying Training","R1650"
"Wolverhampton City Council","http://opendatacommunities.org/id/metropolitan-district-council/wolverhampton","708435","University Of Wolverhampton","45063537","24,955.85","Grant Payments","130209777","21/03/2018","Enterprise","Growth Hub Phase 2 (2015/16)","R4700"
"Wolverhampton City Council","http://opendatacommunities.org/id/metropolitan-district-council/wolverhampton","708435","University Of Wolverhampton","45062995","22,848.00","Services - Professional Fees","130209616","16/03/2018","Looked After Children","Pupil Premium","R4400"
"Wolverhampton City Council","http://opendatacommunities.org/id/metropolitan-district-council/wolverhampton","708435","University Of Wolverhampton","45063852","291.00","Catering","130210941","26/03/2018","Enterprise","Business Engagement","R4100"
"Wolverhampton City Council","http://opendatacommunities.org/id/metropolitan-district-council/wolverhampton","708435","University Of Wolverhampton","45063707","12,901.83","Grant Payments","130210084","21/03/2018","Enterprise","Growth Hub Phase 2 (2015/16)","R4700"
"Wolverhampton City Council","http://opendatacommunities.org/id/metropolitan-district-council/wolverhampton","708435","University Of Wolverhampton","45063708","33,868.39","Grant Payments","130210085","21/03/2018","Enterprise","Growth Hub Phase 2 (2015/16)","R4700"
"Wolverhampton City Council","http://opendatacommunities.org/id/metropolitan-district-council/wolverhampton","708435","University Of Wolverhampton","45063525","44,118.76","Grant Payments","130209776","21/03/2018","Enterprise","Growth Hub Phase 2 (2015/16)","R4700"
"Wolverhampton City Council","http://opendatacommunities.org/id/metropolitan-district-council/wolverhampton","708435","University Of Wolverhampton","45062925","142.24","Marketing \ Non-staff advertising","130208062","07/03/2018","Enterprise","Invest Black Country","R4317"
"Wolverhampton City Council","http://opendatacommunities.org/id/metropolitan-district-council/wolverhampton","708436","Univ. Of Wolverhampton (Little Scholars)","TFT Spring 2018 Inst 2","8,402.34","TPP - Private Nursery Education Funding","190439893","23/03/2018","Early Years","Early Years Entitlement Funding for Disadvantaged 2 Year Olds","R5035"
"Wolverhampton City Council","http://opendatacommunities.org/id/metropolitan-district-council/wolverhampton","708436","Univ. Of Wolverhampton (Little Scholars)","EYPP Spring 2018","954.00","TPP - Private Nursery Education Funding","190441753","26/03/2018","Early Years","Early Years Pupil Premium","R5035"
"Wolverhampton City Council","http://opendatacommunities.org/id/metropolitan-district-council/wolverhampton","708436","Univ. Of Wolverhampton (Little Scholars)","NEF Spring 2018 INST 2","12,334.83","TPP - Private Nursery Education Funding","190439901","23/03/2018","Early Years","Early Years Universal Entitlement for 3 and 4 Year Olds","R5035"
"Wolverhampton City Council","http://opendatacommunities.org/id/metropolitan-district-council/wolverhampton","708448","AECOM Infrastructure & Environment UK Ltd","28338468","2,287.74","Construction and Conversion","130206971","21/03/2018","","Safety Programme","C1100"
"Wolverhampton City Council","http://opendatacommunities.org/id/metropolitan-district-council/wolverhampton","708448","AECOM Infrastructure & Environment UK Ltd","28338465","6,705.00","Construction and Conversion","130206970","21/03/2018","","Safety Programme","C1100"
"Wolverhampton City Council","http://opendatacommunities.org/id/metropolitan-district-council/wolverhampton","708448","AECOM Infrastructure & Environment UK Ltd","28338470","3,777.54","Construction and Conversion","130206972","21/03/2018","","Safety Programme","C1100"
"Wolverhampton City Council","http://opendatacommunities.org/id/metropolitan-district-council/wolverhampton","708448","AECOM Infrastructure & Environment UK Ltd","28337290","2,574.19","Construction and Conversion","130205728","07/03/2018","","Transport Structual Maintenance","C1100"
"Wolverhampton City Council","http://opendatacommunities.org/id/metropolitan-district-council/wolverhampton","708448","AECOM Infrastructure & Environment UK Ltd","28337021","82,016.64","Services - Professional Fees","130205396","07/03/2018","Black Country Transport","Black Country Transport Director","R4400"
"Wolverhampton City Council","http://opendatacommunities.org/id/metropolitan-district-council/wolverhampton","708448","AECOM Infrastructure & Environment UK Ltd","28337008","6,450.48","Construction and Conversion","130205390","07/03/2018","","Wolverhampton Interchange","C1100"
"Wolverhampton City Council","http://opendatacommunities.org/id/metropolitan-district-council/wolverhampton","708448","AECOM Infrastructure & Environment UK Ltd","28337048","234.95","Construction and Conversion","130205397","07/03/2018","","Transport Structual Maintenance","C1100"
"Wolverhampton City Council","http://opendatacommunities.org/id/metropolitan-district-council/wolverhampton","708448","AECOM Infrastructure & Environment UK Ltd","28340008","25,438.43","Services - Professional Fees","130208067","26/03/2018","City Development","City Centre Public Realm","R4400"
"Wolverhampton City Council","http://opendatacommunities.org/id/metropolitan-district-council/wolverhampton","708448","AECOM Infrastructure & Environment UK Ltd","28339873","1,727.86","Services - Professional Fees","130207860","26/03/2018","Transportation","Strategy & Development","R4400"
"Wolverhampton City Council","http://opendatacommunities.org/id/metropolitan-district-council/wolverhampton","708448","AECOM Infrastructure & Environment UK Ltd","28339843","198.28","Services - Professional Fees","130207858","26/03/2018","Transportation","Section 278 and 38 Agreements","R4400"
"Wolverhampton City Council","http://opendatacommunities.org/id/metropolitan-district-council/wolverhampton","708448","AECOM Infrastructure & Environment UK Ltd","28340065","5,282.63","Construction and Conversion","130208243","26/03/2018","","GF - Accessing Growth Fund","C1100"
"Wolverhampton City Council","http://opendatacommunities.org/id/metropolitan-district-council/wolverhampton","708448","AECOM Infrastructure & Environment UK Ltd","28337914","1,981.00","Services - Professional Fees","130206371","14/03/2018","City Development","City Learning Quarter Regen Reserve","R4400"
"Wolverhampton City Council","http://opendatacommunities.org/id/metropolitan-district-council/wolverhampton","708448","AECOM Infrastructure & Environment UK Ltd","28336977","309.52","Construction and Conversion","130205385","02/03/2018","","Integrated Transport","C1100"
"Wolverhampton City Council","http://opendatacommunities.org/id/metropolitan-district-council/wolverhampton","708448","AECOM Infrastructure & Environment UK Ltd","28338477","2,154.56","Construction and Conversion","130206975","21/03/2018","","GF - Accessing Growth Fund","C1100"
"Wolverhampton City Council","http://opendatacommunities.org/id/metropolitan-district-council/wolverhampton","708448","AECOM Infrastructure & Environment UK Ltd","28337288","699.40","Construction and Conversion","130205904","21/03/2018","","GF - Maintenance of Non Highway Structures","C1100"
"Wolverhampton City Council","http://opendatacommunities.org/id/metropolitan-district-council/wolverhampton","708448","AECOM Infrastructure & Environment UK Ltd","28338476","6,438.00","Services - Professional Fees","130206974","21/03/2018","Transportation","Strategy & Development","R4400"
"Wolverhampton City Council","http://opendatacommunities.org/id/metropolitan-district-council/wolverhampton","708448","AECOM Infrastructure & Environment UK Ltd","28339366","-1,981.00","Services - Professional Fees","130207558","21/03/2018","City Development","City Learning Quarter Regen Reserve","R4400"
"Wolverhampton City Council","http://opendatacommunities.org/id/metropolitan-district-council/wolverhampton","708448","AECOM Infrastructure & Environment UK Ltd","28337009","699.10","Construction and Conversion","130205391","07/03/2018","","Integrated Transport","C1100"
"Wolverhampton City Council","http://opendatacommunities.org/id/metropolitan-district-council/wolverhampton","708448","AECOM Infrastructure & Environment UK Ltd","28337102","2,698.01","Construction and Conversion","130205399","07/03/2018","","Safety Programme","C1100"
"Wolverhampton City Council","http://opendatacommunities.org/id/metropolitan-district-council/wolverhampton","708448","AECOM Infrastructure & Environment UK Ltd","28337094","1,727.13","Construction and Conversion","130205398","07/03/2018","","Integrated Transport","C1100"
"Wolverhampton City Council","http://opendatacommunities.org/id/metropolitan-district-council/wolverhampton","708448","AECOM Infrastructure & Environment UK Ltd","28337091","12,542.34","Services - Professional Fees","130205903","07/03/2018","Operation & Maintenance of Existing Network","Condition Surveys","R4400"
"Wolverhampton City Council","http://opendatacommunities.org/id/metropolitan-district-council/wolverhampton","708448","AECOM Infrastructure & Environment UK Ltd","28340005","4,865.80","Services - Professional Fees","130208065","26/03/2018","Operation & Maintenance of Existing Network","Condition Surveys","R4400"
"Wolverhampton City Council","http://opendatacommunities.org/id/metropolitan-district-council/wolverhampton","708448","AECOM Infrastructure & Environment UK Ltd","28339942","6,023.36","Construction and Conversion","130208063","26/03/2018","","Wolverhampton Interchange","C1100"
"Wolverhampton City Council","http://opendatacommunities.org/id/metropolitan-district-council/wolverhampton","708448","AECOM Infrastructure & Environment UK Ltd","28339841","3,341.61","Construction and Conversion","130207857","26/03/2018","","Safety Programme","C1100"
"Wolverhampton City Council","http://opendatacommunities.org/id/metropolitan-district-council/wolverhampton","708448","AECOM Infrastructure & Environment UK Ltd","28340051","25,094.05","Services - Professional Fees","130208068","26/03/2018","Black Country Transport","Black Country Transport Director","R4400"
"Wolverhampton City Council","http://opendatacommunities.org/id/metropolitan-district-council/wolverhampton","708448","AECOM Infrastructure & Environment UK Ltd","28336978","800.00","Construction and Conversion","130205386","02/03/2018","","Safety Programme","C1100"
"Wolverhampton City Council","http://opendatacommunities.org/id/metropolitan-district-council/wolverhampton","708448","AECOM Infrastructure & Environment UK Ltd","28337534","6,955.53","Construction and Conversion","130206218","09/03/2018","","GF - Accessing Growth Fund","C1100"
"Wolverhampton City Council","http://opendatacommunities.org/id/metropolitan-district-council/wolverhampton","708448","AECOM Infrastructure & Environment UK Ltd","28339943","343.04","Construction and Conversion","130208892","26/03/2018","","GF - Maintenance of Non Highway Structures","C1100"
"Wolverhampton City Council","http://opendatacommunities.org/id/metropolitan-district-council/wolverhampton","708448","AECOM Infrastructure & Environment UK Ltd","28339845","3,541.39","Construction and Conversion","130207859","26/03/2018","","GF - Accessing Growth Fund","C1100"
"Wolverhampton City Council","http://opendatacommunities.org/id/metropolitan-district-council/wolverhampton","708448","AECOM Infrastructure & Environment UK Ltd","28340013","309.52","Construction and Conversion","130208241","26/03/2018","","Integrated Transport","C1100"
"Wolverhampton City Council","http://opendatacommunities.org/id/metropolitan-district-council/wolverhampton","708448","AECOM Infrastructure & Environment UK Ltd","28337010","14,869.85","Construction and Conversion","130205392","07/03/2018","","GF - Accessing Growth Fund","C1100"
"Wolverhampton City Council","http://opendatacommunities.org/id/metropolitan-district-council/wolverhampton","708448","AECOM Infrastructure & Environment UK Ltd","28337007","703.87","Services - Professional Fees","130205389","07/03/2018","Transportation","Bridges & Subways","R4400"
"Wolverhampton City Council","http://opendatacommunities.org/id/metropolitan-district-council/wolverhampton","708448","AECOM Infrastructure & Environment UK Ltd","28337011","501.03","Services - Professional Fees","130205393","07/03/2018","Transportation","Bridges & Subways","R4400"
"Wolverhampton City Council","http://opendatacommunities.org/id/metropolitan-district-council/wolverhampton","708448","AECOM Infrastructure & Environment UK Ltd","28337016","7,401.19","Construction and Conversion","130205395","07/03/2018","","GF - Accessing Growth Fund","C1100"
"Wolverhampton City Council","http://opendatacommunities.org/id/metropolitan-district-council/wolverhampton","708448","AECOM Infrastructure & Environment UK Ltd","28339836","8,623.80","Construction and Conversion","130207855","26/03/2018","","GF - Accessing Growth Fund","C1100"
"Wolverhampton City Council","http://opendatacommunities.org/id/metropolitan-district-council/wolverhampton","708448","AECOM Infrastructure & Environment UK Ltd","28338460","4,738.47","Construction and Conversion","130206968","21/03/2018","","Safety Programme","C1100"
"Wolverhampton City Council","http://opendatacommunities.org/id/metropolitan-district-council/wolverhampton","708448","AECOM Infrastructure & Environment UK Ltd","28338551","17,600.00","Construction and Conversion","130206976","21/03/2018","","GF - LGF Feasibility","C1100"
"Wolverhampton City Council","http://opendatacommunities.org/id/metropolitan-district-council/wolverhampton","708448","AECOM Infrastructure & Environment UK Ltd","28338473","1,110.44","Services - Professional Fees","130206973","21/03/2018","Transportation","Section 278 and 38 Agreements","R4400"
"Wolverhampton City Council","http://opendatacommunities.org/id/metropolitan-district-council/wolverhampton","708448","AECOM Infrastructure & Environment UK Ltd","28338473","852.98","Services - Professional Fees","130206973","21/03/2018","Transportation","Section 278 and 38 Agreements","R4400"
"Wolverhampton City Council","http://opendatacommunities.org/id/metropolitan-district-council/wolverhampton","708448","AECOM Infrastructure & Environment UK Ltd","28336979","1,000.00","Construction and Conversion","130205387","02/03/2018","","Safety Programme","C1100"
"Wolverhampton City Council","http://opendatacommunities.org/id/metropolitan-district-council/wolverhampton","708448","AECOM Infrastructure & Environment UK Ltd","28337382","26,386.30","Construction and Conversion","130205905","07/03/2018","","GF - Accessing Growth Fund","C1100"
"Wolverhampton City Council","http://opendatacommunities.org/id/metropolitan-district-council/wolverhampton","708448","AECOM Infrastructure & Environment UK Ltd","28337015","4,796.11","Construction and Conversion","130205394","07/03/2018","","GF - Accessing Growth Fund","C1100"
"Wolverhampton City Council","http://opendatacommunities.org/id/metropolitan-district-council/wolverhampton","708448","AECOM Infrastructure & Environment UK Ltd","28337006","2,188.73","Construction and Conversion","130205388","07/03/2018","","Integrated Transport","C1100"
"Wolverhampton City Council","http://opendatacommunities.org/id/metropolitan-district-council/wolverhampton","708448","AECOM Infrastructure & Environment UK Ltd","28337304","2,659.67","Construction and Conversion","130206370","07/03/2018","","GF - Accessing Growth Fund","C1100"
"Wolverhampton City Council","http://opendatacommunities.org/id/metropolitan-district-council/wolverhampton","708448","AECOM Infrastructure & Environment UK Ltd","","4,234.88","Services - Professional Fees","130206969","21/03/2018","Highways Maintenance","Planned Highways Maintenance","R4400"
"Wolverhampton City Council","http://opendatacommunities.org/id/metropolitan-district-council/wolverhampton","708448","AECOM Infrastructure & Environment UK Ltd","28339216","1,279.37","Services - Professional Fees","130207434","21/03/2018","Transportation","Strategy & Development","R4400"
"Wolverhampton City Council","http://opendatacommunities.org/id/metropolitan-district-council/wolverhampton","708448","AECOM Infrastructure & Environment UK Ltd","28339523","1,957.06","Services - Professional Fees","130207707","21/03/2018","Estates and Valuations","Disposal Costs","R4400"
"Wolverhampton City Council","http://opendatacommunities.org/id/metropolitan-district-council/wolverhampton","708448","AECOM Infrastructure & Environment UK Ltd","28340092","18,881.00","Construction and Conversion","130208244","26/03/2018","","GF - Accessing Growth Fund","C1100"
"Wolverhampton City Council","http://opendatacommunities.org/id/metropolitan-district-council/wolverhampton","708448","AECOM Infrastructure & Environment UK Ltd","28339968","1,653.86","Services - Professional Fees","130207861","26/03/2018","City Development","City Learning Quarter Regen Reserve","R4400"
"Wolverhampton City Council","http://opendatacommunities.org/id/metropolitan-district-council/wolverhampton","708448","AECOM Infrastructure & Environment UK Ltd","28339838","1,231.28","Construction and Conversion","130207856","26/03/2018","","Integrated Transport","C1100"
"Wolverhampton City Council","http://opendatacommunities.org/id/metropolitan-district-council/wolverhampton","708448","AECOM Infrastructure & Environment UK Ltd","28339970","327.00","Services - Professional Fees","130208716","26/03/2018","City Development","City Learning Quarter Regen Reserve","R4400"
"Wolverhampton City Council","http://opendatacommunities.org/id/metropolitan-district-council/wolverhampton","708448","AECOM Infrastructure & Environment UK Ltd","28340007","10,370.82","Construction and Conversion","130208066","26/03/2018","","GF - Accessing Growth Fund","C1100"
"Wolverhampton City Council","http://opendatacommunities.org/id/metropolitan-district-council/wolverhampton","708448","AECOM Infrastructure & Environment UK Ltd","28331109","109.20","Construction and Conversion","130199243","14/03/2018","","Transport Structual Maintenance","C1100"
"Wolverhampton City Council","http://opendatacommunities.org/id/metropolitan-district-council/wolverhampton","708448","AECOM Infrastructure & Environment UK Ltd","28334163","1,000.00","Construction and Conversion","130202158","02/03/2018","","Safety Programme","C1100"
"Wolverhampton City Council","http://opendatacommunities.org/id/metropolitan-district-council/wolverhampton","708449","Ustigate Limited","0000005270","2,567.00","R&M - Departmental planned (external)","130209619","16/03/2018","Environmental Maintenance","Fountain Maintenance","R2001"
"Wolverhampton City Council","http://opendatacommunities.org/id/metropolitan-district-council/wolverhampton","708453","V L Test Systems Limited","18030557","307.51","Services - Professional Fees","190439595","23/03/2018","Fleet Services","Fleet Management","R4400"
"Wolverhampton City Council","http://opendatacommunities.org/id/metropolitan-district-council/wolverhampton","708453","V L Test Systems Limited","18030557","120.00","Services - Professional Fees","190439595","23/03/2018","Fleet Services","Fleet Management","R4400"
"Wolverhampton City Council","http://opendatacommunities.org/id/metropolitan-district-council/wolverhampton","708453","V L Test Systems Limited","18030557","75.00","Services - Professional Fees","190439595","23/03/2018","Fleet Services","Fleet Management","R4400"
"Wolverhampton City Council","http://opendatacommunities.org/id/metropolitan-district-council/wolverhampton","708466","Valmont Stainton Limited","2018/DEF-CINV000000570","14,218.90","Materials","130207862","26/03/2018","Street Lighting","Street Lighting Maintenance","R4007"
"Wolverhampton City Council","http://opendatacommunities.org/id/metropolitan-district-council/wolverhampton","708467","Valuation Office Agency","25000019302017","1,519.20","Services - Professional Fees","130210946","26/03/2018","City Development","Strategic Asset Management - Bilston Town Centre Regen","R4400"
"Wolverhampton City Council","http://opendatacommunities.org/id/metropolitan-district-council/wolverhampton","708467","Valuation Office Agency","25000101562017","2,913.30","Services - Consultants","130207286","14/03/2018","Planning","Planning","R4404"
"Wolverhampton City Council","http://opendatacommunities.org/id/metropolitan-district-council/wolverhampton","708467","Valuation Office Agency","25000107532017","2,000.00","Services - Professional Fees","130208718","26/03/2018","Corporate Accounts","Corporate Budgets","R4400"
"Wolverhampton City Council","http://opendatacommunities.org/id/metropolitan-district-council/wolverhampton","708478","Venn Group Limited","3373410","1,000.00","Agency Staff","130208303","14/03/2018","Legal Services","Legal Services","R1100"
"Wolverhampton City Council","http://opendatacommunities.org/id/metropolitan-district-council/wolverhampton","708481","Venue Catering Partner Limited","25865","16.00","Catering","130207863","02/03/2018","Standards and Vulnerable Pupils","SEN Special Education Admin","R4100"
"Wolverhampton City Council","http://opendatacommunities.org/id/metropolitan-district-council/wolverhampton","708481","Venue Catering Partner Limited","25865","4.50","Catering","130207863","02/03/2018","Standards and Vulnerable Pupils","SEN Special Education Admin","R4100"
"Wolverhampton City Council","http://opendatacommunities.org/id/metropolitan-district-council/wolverhampton","708481","Venue Catering Partner Limited","25344","47.00","Catering","130208896","14/03/2018","Specialist Support","Youth Zone","R4100"
"Wolverhampton City Council","http://opendatacommunities.org/id/metropolitan-district-council/wolverhampton","708481","Venue Catering Partner Limited","29147","365.31","Room Hire","130210341","23/03/2018","Headstart","Headstart - Learning Technologies Team","R2201"
"Wolverhampton City Council","http://opendatacommunities.org/id/metropolitan-district-council/wolverhampton","708481","Venue Catering Partner Limited","28929","812.92","Room Hire","130210340","23/03/2018","Headstart","Headstart - Learning Technologies Team","R2201"
"Wolverhampton City Council","http://opendatacommunities.org/id/metropolitan-district-council/wolverhampton","708481","Venue Catering Partner Limited","28629","495.83","Room Hire","130208897","14/03/2018","Headstart","Headstart Hubs","R2201"
"Wolverhampton City Council","http://opendatacommunities.org/id/metropolitan-district-council/wolverhampton","708481","Venue Catering Partner Limited","28629","729.58","Catering","130208897","14/03/2018","Headstart","Headstart Hubs","R4100"
"Wolverhampton City Council","http://opendatacommunities.org/id/metropolitan-district-council/wolverhampton","708481","Venue Catering Partner Limited","28629","139.58","Equipment - Purchase","130208897","14/03/2018","Headstart","Headstart Hubs","R4000"
"Wolverhampton City Council","http://opendatacommunities.org/id/metropolitan-district-council/wolverhampton","708481","Venue Catering Partner Limited","28629","4.58","Equipment - Purchase","130208897","14/03/2018","Headstart","Headstart Hubs","R4000"
"Wolverhampton City Council","http://opendatacommunities.org/id/metropolitan-district-council/wolverhampton","708483","Veolia Es (UK) Limited","OP/I518600","792.88","TPP - Waste Disposal","130210344","21/03/2018","Environmental Maintenance","Ground Maintenance Overheads","R5003"
"Wolverhampton City Council","http://opendatacommunities.org/id/metropolitan-district-council/wolverhampton","708483","Veolia Es (UK) Limited","OP/I518598","808.28","TPP - Waste Disposal","130210343","21/03/2018","Environmental Maintenance","Ground Maintenance Overheads","R5003"
"Wolverhampton City Council","http://opendatacommunities.org/id/metropolitan-district-council/wolverhampton","708484","Verifone Services UK&Ireland Limited","7500870332","39.98","R&M - Departmental planned (internal)","130207562","14/03/2018","Adult Education","Foyer Building","R2000"
"Wolverhampton City Council","http://opendatacommunities.org/id/metropolitan-district-council/wolverhampton","708484","Verifone Services UK&Ireland Limited","7500865674","33.00","Equipment - Hire","130207561","14/03/2018","Catering","Civic Centre Catering","R4001"
"Wolverhampton City Council","http://opendatacommunities.org/id/metropolitan-district-council/wolverhampton","708484","Verifone Services UK&Ireland Limited","7500864426","14.99","Equipment - Hire","130207560","14/03/2018","Leisure Services","Bert Williams Leisure Centre Caf�","R4001"
"Wolverhampton City Council","http://opendatacommunities.org/id/metropolitan-district-council/wolverhampton","708484","Verifone Services UK&Ireland Limited","7500862403","19.99","Equipment - Purchase","130207559","14/03/2018","Catering","Education Catering - General Overheads","R4000"
"Wolverhampton City Council","http://opendatacommunities.org/id/metropolitan-district-council/wolverhampton","708500","Virgin Media Limited(Cctv Payments Only)","913178 - 091","87.88","Equipment - Hire","130177691","14/03/2018","Operation & Maintenance of Existing Network","UTC Dudley","R4001"
"Wolverhampton City Council","http://opendatacommunities.org/id/metropolitan-district-council/wolverhampton","708500","Virgin Media Limited(Cctv Payments Only)","911806 - 091","86.16","Equipment - Hire","130176510","21/03/2018","Operation & Maintenance of Existing Network","UTC Dudley","R4001"
"Wolverhampton City Council","http://opendatacommunities.org/id/metropolitan-district-council/wolverhampton","708501","Virgin Media Limited(Diversionary Works)","100937801001","7.51","TPP - Maintenance on Other Roads","130209254","16/03/2018","Learning Disability Provider","City Links","R5710"
"Wolverhampton City Council","http://opendatacommunities.org/id/metropolitan-district-council/wolverhampton","708503","Virk Cut Price","REC22/JAN18","190.90","Publications","130209255","21/03/2018","Democratic Services","Members Expenses","R4310"
"Wolverhampton City Council","http://opendatacommunities.org/id/metropolitan-district-council/wolverhampton","708503","Virk Cut Price","REC24/JAN18","33.10","Publications","130209623","21/03/2018","Democratic Services","Members Expenses","R4310"
"Wolverhampton City Council","http://opendatacommunities.org/id/metropolitan-district-council/wolverhampton","708503","Virk Cut Price","REC14/JAN18","19.30","Publications","130209622","21/03/2018","Democratic Services","Members Expenses","R4310"
"Wolverhampton City Council","http://opendatacommunities.org/id/metropolitan-district-council/wolverhampton","708507","Vision Aid Technologies","110823","675.00","Equipment - Purchase","130205401","07/03/2018","Inclusion Support","Inclusion Support","R4000"
"Wolverhampton City Council","http://opendatacommunities.org/id/metropolitan-district-council/wolverhampton","708507","Vision Aid Technologies","110823","1,230.00","Training Expenses","130205401","07/03/2018","Inclusion Support","Inclusion Support","R1650"
"Wolverhampton City Council","http://opendatacommunities.org/id/metropolitan-district-council/wolverhampton","708542","W.V.Howe Limited","232396","6.78","Equipment - Catering","130206977","16/03/2018","Catering","Education Catering - General Overheads","R4010"
"Wolverhampton City Council","http://opendatacommunities.org/id/metropolitan-district-council/wolverhampton","708542","W.V.Howe Limited","233164","15.20","Equipment - Catering","130209624","16/03/2018","Catering","Education Catering - General Overheads","R4010"
"Wolverhampton City Council","http://opendatacommunities.org/id/metropolitan-district-council/wolverhampton","708581","Wates Construction Limited","108571","391,824.00","Construction and Conversion","130209782","21/03/2018","","Roof Refurbishment Programme","C1100"
"Wolverhampton City Council","http://opendatacommunities.org/id/metropolitan-district-council/wolverhampton","708581","Wates Construction Limited","107925","65,306.00","Construction and Conversion","130209447","21/03/2018","","Merridale Court","C1100"
"Wolverhampton City Council","http://opendatacommunities.org/id/metropolitan-district-council/wolverhampton","708581","Wates Construction Limited","108652","37,080.00","Construction and Conversion","130210753","23/03/2018","","Merridale Court","C1100"
"Wolverhampton City Council","http://opendatacommunities.org/id/metropolitan-district-council/wolverhampton","708581","Wates Construction Limited","108530","185,809.00","Construction and Conversion","130209625","16/03/2018","","Fire Safety Improvements","C1100"
"Wolverhampton City Council","http://opendatacommunities.org/id/metropolitan-district-council/wolverhampton","708581","Wates Construction Limited","108516","25,712.00","Construction and Conversion","130209448","16/03/2018","","New Build infill schemes","C1100"
"Wolverhampton City Council","http://opendatacommunities.org/id/metropolitan-district-council/wolverhampton","708588","WBP Visual Solutions Limited","110657","184.00","Services - Professional Fees","130206220","02/03/2018","Visitor Economy","The Clangers & TV Puppets","R4400"
"Wolverhampton City Council","http://opendatacommunities.org/id/metropolitan-district-council/wolverhampton","708588","WBP Visual Solutions Limited","110656","373.00","Printing","130206219","02/03/2018","Visitor Economy","The Clangers & TV Puppets","R4300"
"Wolverhampton City Council","http://opendatacommunities.org/id/metropolitan-district-council/wolverhampton","708601","Webgibb Welding Limited","C6817","1,285.00","R&M - Departmental planned (external)","130209449","21/03/2018","School Planning & Resources","Other Support Services","R2001"
"Wolverhampton City Council","http://opendatacommunities.org/id/metropolitan-district-council/wolverhampton","708608","Wednesfield High S E A","SEN Mainstream Top Ups Spring Term 2017/18 - Wednesfield Academy","12,483.00","Grant Payments","190439961","23/03/2018","Schools","High Needs Top Up -Mainstream Schools/Academies","R4700"
"Wolverhampton City Council","http://opendatacommunities.org/id/metropolitan-district-council/wolverhampton","708608","Wednesfield High S E A","P16808120180313","650.00","Grant Payments to Individuals","190435204","14/03/2018","Looked After Children","LAC Education Team (LACE)","R6402"
"Wolverhampton City Council","http://opendatacommunities.org/id/metropolitan-district-council/wolverhampton","708620","Well Informed Limited","INV-6543","1,028.00","Books","130206858","14/03/2018","Strategic Organisation Development","Global Budgets","R4309"
"Wolverhampton City Council","http://opendatacommunities.org/id/metropolitan-district-council/wolverhampton","708634","Wessex Lift Co. Limited","16/0825/DFG","7,272.79","Grants paid out","190440269","23/03/2018","","Disabled Facilities Grants","C5000"
"Wolverhampton City Council","http://opendatacommunities.org/id/metropolitan-district-council/wolverhampton","708634","Wessex Lift Co. Limited","0000254060","750.00","Construction and Conversion","130206374","09/03/2018","","Adaptations for People with Disabilites","C1100"
"Wolverhampton City Council","http://opendatacommunities.org/id/metropolitan-district-council/wolverhampton","708640","West Mercia Supplies","C149887a corr","-78.47","Equipment - Purchase","130208300","07/03/2018","Schools","Castlecroft Primary School","R4000"
"Wolverhampton City Council","http://opendatacommunities.org/id/metropolitan-district-council/wolverhampton","708640","West Mercia Supplies","C150116a corr","-36.69","Equipment - Purchase","130208301","07/03/2018","Schools","Castlecroft Primary School","R4000"
"Wolverhampton City Council","http://opendatacommunities.org/id/metropolitan-district-council/wolverhampton","708649","West Midlands Employers","6676","1,200.00","Training Expenses","130208425","09/03/2018","Human Resources","Centralised Training","R1650"
"Wolverhampton City Council","http://opendatacommunities.org/id/metropolitan-district-council/wolverhampton","708650","West Midlands Fire Service","600037991","14,073.15","TPP - Social Care Support Services","130205909","07/03/2018","Independent Living Service","Telecare","R5501"
"Wolverhampton City Council","http://opendatacommunities.org/id/metropolitan-district-council/wolverhampton","708650","West Midlands Fire Service","600038093","44,817.57","TPP - Social Care Support Services","130208426","26/03/2018","Independent Living Service","Telecare","R5501"
"Wolverhampton City Council","http://opendatacommunities.org/id/metropolitan-district-council/wolverhampton","708656","West Midlands Travel Limited","XASI/00104968","6,705.00","Public Transport","130206710","07/03/2018","School Planning & Resources","Secondary- Transport","R3300"
"Wolverhampton City Council","http://opendatacommunities.org/id/metropolitan-district-council/wolverhampton","708656","West Midlands Travel Limited","XASI/00105293","1,053.00","Public Transport","130209259","21/03/2018","School Planning & Resources","Secondary- Transport","R3300"
"Wolverhampton City Council","http://opendatacommunities.org/id/metropolitan-district-council/wolverhampton","708656","West Midlands Travel Limited","SLIN/00039131","869.10","Client Transport","130206709","14/03/2018","Skills","IMPACT","R3042"
"Wolverhampton City Council","http://opendatacommunities.org/id/metropolitan-district-council/wolverhampton","708656","West Midlands Travel Limited","SLIN/00039237","27,000.90","Payroll Control Account - Travel Card Scheme","130209783","26/03/2018","","General Fund Balance Sheet","B3350"
"Wolverhampton City Council","http://opendatacommunities.org/id/metropolitan-district-council/wolverhampton","708656","West Midlands Travel Limited","XASI/00105446","108.00","Public Transport","130209260","23/03/2018","School Planning & Resources","Secondary- Transport","R3300"
"Wolverhampton City Council","http://opendatacommunities.org/id/metropolitan-district-council/wolverhampton","708656","West Midlands Travel Limited","SLIN/00039185","230.00","Client Transport","130207139","21/03/2018","Skills","Connexions Contract","R3042"
"Wolverhampton City Council","http://opendatacommunities.org/id/metropolitan-district-council/wolverhampton","708656","West Midlands Travel Limited","SLIN/00039185","6.85","Client Transport","130207139","21/03/2018","Skills","Connexions Contract","R3042"
"Wolverhampton City Council","http://opendatacommunities.org/id/metropolitan-district-council/wolverhampton","708656","West Midlands Travel Limited","XASI/00105110","954.00","Public Transport","130209258","14/03/2018","School Planning & Resources","Secondary- Transport","R3300"
"Wolverhampton City Council","http://opendatacommunities.org/id/metropolitan-district-council/wolverhampton","708656","West Midlands Travel Limited","XASI/00105591","436.25","Public Transport","130210088","26/03/2018","School Planning & Resources","Secondary- Transport","R3300"
"Wolverhampton City Council","http://opendatacommunities.org/id/metropolitan-district-council/wolverhampton","708656","West Midlands Travel Limited","SLIN/00039219","2,580.00","Public Transport","130210087","23/03/2018","Adult Education","24+ Advanced Learning Loan","R3300"
"Wolverhampton City Council","http://opendatacommunities.org/id/metropolitan-district-council/wolverhampton","708656","West Midlands Travel Limited","SLIN/00039219","13.40","Comms - Postage","130210087","23/03/2018","Adult Education","24+ Advanced Learning Loan","R4503"
"Wolverhampton City Council","http://opendatacommunities.org/id/metropolitan-district-council/wolverhampton","708666","Westfield Primary School","P16852020180316","650.00","Grant Payments to Individuals","190437072","21/03/2018","Looked After Children","LAC Education Team (LACE)","R6402"
"Wolverhampton City Council","http://opendatacommunities.org/id/metropolitan-district-council/wolverhampton","708666","Westfield Primary School","P16852020180316","650.00","Grant Payments to Individuals","190437072","21/03/2018","Looked After Children","LAC Education Team (LACE)","R6402"
"Wolverhampton City Council","http://opendatacommunities.org/id/metropolitan-district-council/wolverhampton","708675","Whale Tankers Limited","M53476","102.75","Equipment - Purchase","190440607","23/03/2018","Fleet Services","Fleet Management","R4000"
"Wolverhampton City Council","http://opendatacommunities.org/id/metropolitan-district-council/wolverhampton","708675","Whale Tankers Limited","M52219","280.87","Equipment - Purchase","190440606","23/03/2018","Fleet Services","Fleet Management","R4000"
"Wolverhampton City Council","http://opendatacommunities.org/id/metropolitan-district-council/wolverhampton","708676","Whaleys (Bradford) Limited","I267492","185.80","Materials for resale","130209261","21/03/2018","Adult Education","Creative Studies Delivery Area","R4008"
"Wolverhampton City Council","http://opendatacommunities.org/id/metropolitan-district-council/wolverhampton","708676","Whaleys (Bradford) Limited","I267492","17.70","Materials for resale","130209261","21/03/2018","Adult Education","Creative Studies Delivery Area","R4008"
"Wolverhampton City Council","http://opendatacommunities.org/id/metropolitan-district-council/wolverhampton","708677","WHampton Homes Limited-Property Service","2600012138","58.00","Grants paid out","130111544","16/03/2018","","Housing General Fund General Schemes - Small Works Assistance (SWA)","C5000"
"Wolverhampton City Council","http://opendatacommunities.org/id/metropolitan-district-council/wolverhampton","708677","WHampton Homes Limited-Property Service","2600023328","3,539.89","Grants paid out","130201468","21/03/2018","","Housing General Fund General Schemes - Small Works Assistance (SWA)","C5000"
"Wolverhampton City Council","http://opendatacommunities.org/id/metropolitan-district-council/wolverhampton","708677","WHampton Homes Limited-Property Service","2600022903","716.20","Grants paid out","130200172","21/03/2018","","Housing General Fund General Schemes - Small Works Assistance (SWA)","C5000"
"Wolverhampton City Council","http://opendatacommunities.org/id/metropolitan-district-council/wolverhampton","708677","WHampton Homes Limited-Property Service","2600023776","516.32","Grants paid out","130206090","21/03/2018","","Housing General Fund General Schemes - Small Works Assistance (SWA)","C5000"
"Wolverhampton City Council","http://opendatacommunities.org/id/metropolitan-district-council/wolverhampton","708678","Whats On Guide (City Guides UK Limited)","13066","1,500.00","Marketing \ Non-staff advertising","130208550","14/03/2018","Visitor Economy","Visitor Economy - Development","R4317"
"Wolverhampton City Council","http://opendatacommunities.org/id/metropolitan-district-council/wolverhampton","708679","Whats On Magazines Group Limited","32839","420.00","Marketing \ Non-staff advertising","130210527","23/03/2018","Visitor Economy","Arts Publicity","R4317"
"Wolverhampton City Council","http://opendatacommunities.org/id/metropolitan-district-council/wolverhampton","708697","Wilcox Psychological Associates Limited","3527","3,276.00","Services - Professional Fees","130209784","21/03/2018","Legal Services","Centralised External Legal Costs","R4400"
"Wolverhampton City Council","http://opendatacommunities.org/id/metropolitan-district-council/wolverhampton","708701","Wildside Activity Centre","17/2158","135.50","Training Expenses","130207708","26/03/2018","Audit Services","Health & Safety","R1650"
"Wolverhampton City Council","http://opendatacommunities.org/id/metropolitan-district-council/wolverhampton","708705","Willenhall Engine Centre","64969","2,940.00","Services - Professional Fees","190440581","23/03/2018","Fleet Services","Fleet Management","R4400"
"Wolverhampton City Council","http://opendatacommunities.org/id/metropolitan-district-council/wolverhampton","708705","Willenhall Engine Centre","64829","869.70","Services - Professional Fees","190435296","14/03/2018","Fleet Services","Fleet Management","R4400"
"Wolverhampton City Council","http://opendatacommunities.org/id/metropolitan-district-council/wolverhampton","708705","Willenhall Engine Centre","64936","3,395.00","Services - Professional Fees","190440580","23/03/2018","Fleet Services","Fleet Management","R4400"
"Wolverhampton City Council","http://opendatacommunities.org/id/metropolitan-district-council/wolverhampton","708705","Willenhall Engine Centre","64991","9.26","Services - Professional Fees","190440582","23/03/2018","Fleet Services","Fleet Management","R4400"
"Wolverhampton City Council","http://opendatacommunities.org/id/metropolitan-district-council/wolverhampton","708708","William Gough Limited","83969","127.48","R&M - Departmental planned (external)","130207143","21/03/2018","Maintenance Programme","Centralised R&M","R2001"
"Wolverhampton City Council","http://opendatacommunities.org/id/metropolitan-district-council/wolverhampton","708708","William Gough Limited","83957","40.00","R&M - Departmental planned (external)","130206991","21/03/2018","Maintenance Programme","Centralised R&M","R2001"
"Wolverhampton City Council","http://opendatacommunities.org/id/metropolitan-district-council/wolverhampton","708708","William Gough Limited","83954","227.05","R&M - Departmental planned (external)","130206989","21/03/2018","Maintenance Programme","Centralised R&M","R2001"
"Wolverhampton City Council","http://opendatacommunities.org/id/metropolitan-district-council/wolverhampton","708708","William Gough Limited","83958","61.57","R&M - Departmental planned (external)","130206992","21/03/2018","Maintenance Programme","Centralised R&M","R2001"
"Wolverhampton City Council","http://opendatacommunities.org/id/metropolitan-district-council/wolverhampton","708708","William Gough Limited","83961","164.82","R&M - Departmental planned (external)","130206995","21/03/2018","Maintenance Programme","Centralised R&M","R2001"
"Wolverhampton City Council","http://opendatacommunities.org/id/metropolitan-district-council/wolverhampton","708708","William Gough Limited","83983","131.05","R&M - Departmental planned (external)","130207295","21/03/2018","Maintenance Programme","Centralised R&M","R2001"
"Wolverhampton City Council","http://opendatacommunities.org/id/metropolitan-district-council/wolverhampton","708708","William Gough Limited","83987","51.20","R&M - Departmental planned (external)","130207299","21/03/2018","Maintenance Programme","Centralised R&M","R2001"
"Wolverhampton City Council","http://opendatacommunities.org/id/metropolitan-district-council/wolverhampton","708708","William Gough Limited","83981","397.44","R&M - Departmental planned (external)","130207293","21/03/2018","Maintenance Programme","Centralised R&M","R2001"
"Wolverhampton City Council","http://opendatacommunities.org/id/metropolitan-district-council/wolverhampton","708708","William Gough Limited","83985","40.00","R&M - Departmental planned (external)","130207297","21/03/2018","Maintenance Programme","Centralised R&M","R2001"
"Wolverhampton City Council","http://opendatacommunities.org/id/metropolitan-district-council/wolverhampton","708708","William Gough Limited","83975","55.62","R&M - Departmental planned (external)","130207291","21/03/2018","Maintenance Programme","Centralised R&M","R2001"
"Wolverhampton City Council","http://opendatacommunities.org/id/metropolitan-district-council/wolverhampton","708708","William Gough Limited","83824","117.27","R&M - Departmental planned (external)","130205417","07/03/2018","Maintenance Programme","Centralised R&M","R2001"
"Wolverhampton City Council","http://opendatacommunities.org/id/metropolitan-district-council/wolverhampton","708708","William Gough Limited","83806","40.00","R&M - Departmental planned (external)","130205409","07/03/2018","Maintenance Programme","Centralised R&M","R2001"
"Wolverhampton City Council","http://opendatacommunities.org/id/metropolitan-district-council/wolverhampton","708708","William Gough Limited","83813","179.45","R&M - Departmental planned (external)","130205412","07/03/2018","Maintenance Programme","Centralised R&M","R2001"
"Wolverhampton City Council","http://opendatacommunities.org/id/metropolitan-district-council/wolverhampton","708708","William Gough Limited","83854","64.42","R&M - Departmental planned (external)","130205743","07/03/2018","Maintenance Programme","Centralised R&M","R2001"
"Wolverhampton City Council","http://opendatacommunities.org/id/metropolitan-district-council/wolverhampton","708708","William Gough Limited","83855","354.81","R&M - Departmental planned (external)","130205744","07/03/2018","Maintenance Programme","Centralised R&M","R2001"
"Wolverhampton City Council","http://opendatacommunities.org/id/metropolitan-district-council/wolverhampton","708708","William Gough Limited","83843","40.00","R&M - Departmental planned (external)","130205733","07/03/2018","Maintenance Programme","Centralised R&M","R2001"
"Wolverhampton City Council","http://opendatacommunities.org/id/metropolitan-district-council/wolverhampton","708708","William Gough Limited","83825","48.78","R&M - Departmental planned (external)","130205418","07/03/2018","Facilities Management","Magistrates","R2001"
"Wolverhampton City Council","http://opendatacommunities.org/id/metropolitan-district-council/wolverhampton","708708","William Gough Limited","83833","45.66","R&M - Departmental planned (external)","130205540","07/03/2018","Facilities Management","Caretakers Community Centre","R2001"
"Wolverhampton City Council","http://opendatacommunities.org/id/metropolitan-district-council/wolverhampton","708708","William Gough Limited","83850","77.30","R&M - Departmental planned (external)","130205739","07/03/2018","Maintenance Programme","Centralised R&M","R2001"
"Wolverhampton City Council","http://opendatacommunities.org/id/metropolitan-district-council/wolverhampton","708708","William Gough Limited","83845","470.29","R&M - Departmental planned (external)","130205735","07/03/2018","Markets","Bilston Market and Licensed Operations","R2001"
"Wolverhampton City Council","http://opendatacommunities.org/id/metropolitan-district-council/wolverhampton","708708","William Gough Limited","83861","40.00","R&M - Departmental planned (external)","130205912","07/03/2018","Maintenance Programme","Centralised R&M","R2001"
"Wolverhampton City Council","http://opendatacommunities.org/id/metropolitan-district-council/wolverhampton","708708","William Gough Limited","84071","160.21","R&M - Departmental planned (external)","130208079","26/03/2018","Early Intervention","EIP Locality 3 - Graiseley","R2001"
"Wolverhampton City Council","http://opendatacommunities.org/id/metropolitan-district-council/wolverhampton","708708","William Gough Limited","84067","463.42","R&M - Departmental planned (external)","130208075","26/03/2018","Maintenance Programme","Centralised R&M","R2001"
"Wolverhampton City Council","http://opendatacommunities.org/id/metropolitan-district-council/wolverhampton","708708","William Gough Limited","84054","44.64","R&M - Departmental planned (external)","130207881","26/03/2018","Maintenance Programme","Centralised R&M","R2001"
"Wolverhampton City Council","http://opendatacommunities.org/id/metropolitan-district-council/wolverhampton","708708","William Gough Limited","84041","61.09","R&M - Departmental planned (external)","130207869","26/03/2018","Maintenance Programme","Civic Centre Repairs & Maintenance","R2001"
"Wolverhampton City Council","http://opendatacommunities.org/id/metropolitan-district-council/wolverhampton","708708","William Gough Limited","84019","183.57","R&M - Departmental planned (external)","130207723","26/03/2018","Maintenance Programme","Centralised R&M","R2001"
"Wolverhampton City Council","http://opendatacommunities.org/id/metropolitan-district-council/wolverhampton","708708","William Gough Limited","84043","273.12","R&M - Departmental planned (external)","130207871","26/03/2018","Maintenance Programme","Centralised R&M","R2001"
"Wolverhampton City Council","http://opendatacommunities.org/id/metropolitan-district-council/wolverhampton","708708","William Gough Limited","84051","277.91","R&M - Departmental planned (external)","130207878","26/03/2018","Maintenance Programme","Centralised R&M","R2001"
"Wolverhampton City Council","http://opendatacommunities.org/id/metropolitan-district-council/wolverhampton","708708","William Gough Limited","84068","122.67","R&M - Departmental planned (external)","130208076","26/03/2018","Markets","Bilston Market and Licensed Operations","R2001"
"Wolverhampton City Council","http://opendatacommunities.org/id/metropolitan-district-council/wolverhampton","708708","William Gough Limited","84062","65.67","R&M - Departmental planned (external)","130208071","26/03/2018","Markets","Wolverhampton Indoor and Open Market","R2001"
"Wolverhampton City Council","http://opendatacommunities.org/id/metropolitan-district-council/wolverhampton","708708","William Gough Limited","84064","119.53","R&M - Departmental planned (external)","130208072","26/03/2018","Maintenance Programme","Centralised R&M","R2001"
"Wolverhampton City Council","http://opendatacommunities.org/id/metropolitan-district-council/wolverhampton","708708","William Gough Limited","84055","2,560.81","R&M - Departmental planned (external)","130207882","26/03/2018","Maintenance Programme","Centralised R&M","R2001"
"Wolverhampton City Council","http://opendatacommunities.org/id/metropolitan-district-council/wolverhampton","708708","William Gough Limited","84047","104.27","R&M - Departmental planned (external)","130207875","26/03/2018","Maintenance Programme","Centralised R&M","R2001"
"Wolverhampton City Council","http://opendatacommunities.org/id/metropolitan-district-council/wolverhampton","708708","William Gough Limited","84003","16,075.76","R&M - Departmental planned (external)","130207711","26/03/2018","Corporate Asset Management","Centralised Planned Maintenance","R2001"
"Wolverhampton City Council","http://opendatacommunities.org/id/metropolitan-district-council/wolverhampton","708708","William Gough Limited","84008","2,441.66","R&M - Departmental planned (external)","130207716","26/03/2018","Learning Disability Provider","Learning Disabilities Management","R2001"
"Wolverhampton City Council","http://opendatacommunities.org/id/metropolitan-district-council/wolverhampton","708708","William Gough Limited","83919","51.53","R&M - Departmental planned (external)","130206718","14/03/2018","Maintenance Programme","Centralised R&M","R2001"
"Wolverhampton City Council","http://opendatacommunities.org/id/metropolitan-district-council/wolverhampton","708708","William Gough Limited","83885","93.41","R&M - Departmental planned (external)","130206377","14/03/2018","Maintenance Programme","Centralised R&M","R2001"
"Wolverhampton City Council","http://opendatacommunities.org/id/metropolitan-district-council/wolverhampton","708708","William Gough Limited","83881","144.61","R&M - Departmental planned (external)","130206231","14/03/2018","Markets","Bilston Market and Licensed Operations","R2001"
"Wolverhampton City Council","http://opendatacommunities.org/id/metropolitan-district-council/wolverhampton","708708","William Gough Limited","83905","83.60","R&M - Departmental planned (external)","130206563","14/03/2018","Maintenance Programme","Centralised R&M","R2001"
"Wolverhampton City Council","http://opendatacommunities.org/id/metropolitan-district-council/wolverhampton","708708","William Gough Limited","83996","5,287.78","R&M - Departmental planned (external)","130207709","23/03/2018","Corporate Asset Management","Centralised Planned Maintenance","R2001"
"Wolverhampton City Council","http://opendatacommunities.org/id/metropolitan-district-council/wolverhampton","708708","William Gough Limited","83872","51.20","R&M - Departmental planned (external)","130206226","14/03/2018","Maintenance Programme","Centralised R&M","R2001"
"Wolverhampton City Council","http://opendatacommunities.org/id/metropolitan-district-council/wolverhampton","708708","William Gough Limited","83889","198.99","R&M - Departmental planned (external)","130206381","14/03/2018","Maintenance Programme","Centralised R&M","R2001"
"Wolverhampton City Council","http://opendatacommunities.org/id/metropolitan-district-council/wolverhampton","708708","William Gough Limited","83883","51.20","R&M - Departmental planned (external)","130206233","14/03/2018","Maintenance Programme","Centralised R&M","R2001"
"Wolverhampton City Council","http://opendatacommunities.org/id/metropolitan-district-council/wolverhampton","708708","William Gough Limited","83869","40.00","R&M - Departmental planned (external)","130206223","14/03/2018","Maintenance Programme","Centralised R&M","R2001"
"Wolverhampton City Council","http://opendatacommunities.org/id/metropolitan-district-council/wolverhampton","708708","William Gough Limited","82014","194.02","R&M - Departmental planned (external)","130189009","16/03/2018","Maintenance Programme","Centralised R&M","R2001"
"Wolverhampton City Council","http://opendatacommunities.org/id/metropolitan-district-council/wolverhampton","708708","William Gough Limited","83660","53.17","R&M - Departmental planned (external)","130209451","16/03/2018","Maintenance Programme","Centralised R&M","R2001"
"Wolverhampton City Council","http://opendatacommunities.org/id/metropolitan-district-council/wolverhampton","708708","William Gough Limited","83915","70.63","R&M - Departmental planned (external)","130206714","14/03/2018","Maintenance Programme","Centralised R&M","R2001"
"Wolverhampton City Council","http://opendatacommunities.org/id/metropolitan-district-council/wolverhampton","708708","William Gough Limited","83960","40.00","R&M - Departmental planned (external)","130206994","21/03/2018","Maintenance Programme","Centralised R&M","R2001"
"Wolverhampton City Council","http://opendatacommunities.org/id/metropolitan-district-council/wolverhampton","708708","William Gough Limited","83990","68.02","R&M - Departmental planned (external)","130207302","21/03/2018","Maintenance Programme","Centralised R&M","R2001"
"Wolverhampton City Council","http://opendatacommunities.org/id/metropolitan-district-council/wolverhampton","708708","William Gough Limited","83992","451.25","R&M - Departmental planned (external)","130207304","21/03/2018","Maintenance Programme","Centralised R&M","R2001"
"Wolverhampton City Council","http://opendatacommunities.org/id/metropolitan-district-council/wolverhampton","708708","William Gough Limited","83935","87.35","R&M - Departmental planned (external)","130206980","21/03/2018","Maintenance Programme","Centralised R&M","R2001"
"Wolverhampton City Council","http://opendatacommunities.org/id/metropolitan-district-council/wolverhampton","708708","William Gough Limited","83993","584.89","R&M - Departmental planned (external)","130207305","21/03/2018","Maintenance Programme","Centralised R&M","R2001"
"Wolverhampton City Council","http://opendatacommunities.org/id/metropolitan-district-council/wolverhampton","708708","William Gough Limited","83988","128.48","R&M - Departmental planned (external)","130207300","21/03/2018","Maintenance Programme","Centralised R&M","R2001"
"Wolverhampton City Council","http://opendatacommunities.org/id/metropolitan-district-council/wolverhampton","708708","William Gough Limited","83952","115.66","R&M - Departmental planned (external)","130206988","21/03/2018","Maintenance Programme","Centralised R&M","R2001"
"Wolverhampton City Council","http://opendatacommunities.org/id/metropolitan-district-council/wolverhampton","708708","William Gough Limited","83967","61.57","R&M - Departmental planned (external)","130207141","21/03/2018","Maintenance Programme","Centralised R&M","R2001"
"Wolverhampton City Council","http://opendatacommunities.org/id/metropolitan-district-council/wolverhampton","708708","William Gough Limited","83980","40.25","R&M - Departmental planned (external)","130207292","21/03/2018","Maintenance Programme","Centralised R&M","R2001"
"Wolverhampton City Council","http://opendatacommunities.org/id/metropolitan-district-council/wolverhampton","708708","William Gough Limited","83989","273.64","R&M - Departmental planned (external)","130207301","21/03/2018","Maintenance Programme","Centralised R&M","R2001"
"Wolverhampton City Council","http://opendatacommunities.org/id/metropolitan-district-council/wolverhampton","708708","William Gough Limited","83818","40.00","R&M - Departmental planned (external)","130205416","07/03/2018","Maintenance Programme","Civic Centre Repairs & Maintenance","R2001"
"Wolverhampton City Council","http://opendatacommunities.org/id/metropolitan-district-council/wolverhampton","708708","William Gough Limited","83840","206.35","R&M - Departmental planned (external)","130205546","07/03/2018","Maintenance Programme","Centralised R&M","R2001"
"Wolverhampton City Council","http://opendatacommunities.org/id/metropolitan-district-council/wolverhampton","708708","William Gough Limited","83842","152.06","R&M - Departmental planned (external)","130205732","07/03/2018","Maintenance Programme","Civic Centre Repairs & Maintenance","R2001"
"Wolverhampton City Council","http://opendatacommunities.org/id/metropolitan-district-council/wolverhampton","708708","William Gough Limited","83829","74.04","R&M - Departmental planned (external)","130205421","07/03/2018","Maintenance Programme","Centralised R&M","R2001"
"Wolverhampton City Council","http://opendatacommunities.org/id/metropolitan-district-council/wolverhampton","708708","William Gough Limited","83816","69.92","R&M - Departmental planned (external)","130205414","07/03/2018","Maintenance Programme","Civic Centre Repairs & Maintenance","R2001"
"Wolverhampton City Council","http://opendatacommunities.org/id/metropolitan-district-council/wolverhampton","708708","William Gough Limited","C2368","-185.43","R&M - Departmental planned (external)","130205422","07/03/2018","Maintenance Programme","Centralised R&M","R2001"
"Wolverhampton City Council","http://opendatacommunities.org/id/metropolitan-district-council/wolverhampton","708708","William Gough Limited","83847","58.15","R&M - Departmental planned (external)","130205737","07/03/2018","Maintenance Programme","Centralised R&M","R2001"
"Wolverhampton City Council","http://opendatacommunities.org/id/metropolitan-district-council/wolverhampton","708708","William Gough Limited","83852","100.38","R&M - Departmental planned (external)","130205741","07/03/2018","Maintenance Programme","Centralised R&M","R2001"
"Wolverhampton City Council","http://opendatacommunities.org/id/metropolitan-district-council/wolverhampton","708708","William Gough Limited","83844","40.00","R&M - Departmental planned (external)","130205734","07/03/2018","Maintenance Programme","Centralised R&M","R2001"
"Wolverhampton City Council","http://opendatacommunities.org/id/metropolitan-district-council/wolverhampton","708708","William Gough Limited","83836","426.13","R&M - Departmental planned (external)","130205542","07/03/2018","Facilities Management","Magistrates","R2001"
"Wolverhampton City Council","http://opendatacommunities.org/id/metropolitan-district-council/wolverhampton","708708","William Gough Limited","83820","463.85","R&M - Departmental planned (external)","130206375","07/03/2018","Maintenance Programme","Centralised R&M","R2001"
"Wolverhampton City Council","http://opendatacommunities.org/id/metropolitan-district-council/wolverhampton","708708","William Gough Limited","83859","597.80","R&M - Departmental planned (external)","130205910","07/03/2018","Bereavement Services","Cemeteries","R2001"
"Wolverhampton City Council","http://opendatacommunities.org/id/metropolitan-district-council/wolverhampton","708708","William Gough Limited","83986","631.12","R&M - Departmental planned (external)","130207298","26/03/2018","Bereavement Services","Cemeteries","R2001"
"Wolverhampton City Council","http://opendatacommunities.org/id/metropolitan-district-council/wolverhampton","708708","William Gough Limited","84032","49,048.59","Construction and Conversion","130208551","26/03/2018","","Development of Cultural Estate","C1100"
"Wolverhampton City Council","http://opendatacommunities.org/id/metropolitan-district-council/wolverhampton","708708","William Gough Limited","84014","139.89","R&M - Departmental planned (external)","130207721","26/03/2018","Maintenance Programme","Centralised R&M","R2001"
"Wolverhampton City Council","http://opendatacommunities.org/id/metropolitan-district-council/wolverhampton","708708","William Gough Limited","84056","40.00","R&M - Departmental planned (external)","130207883","26/03/2018","Maintenance Programme","Centralised R&M","R2001"
"Wolverhampton City Council","http://opendatacommunities.org/id/metropolitan-district-council/wolverhampton","708708","William Gough Limited","84040","155.63","R&M - Departmental planned (external)","130207868","26/03/2018","Maintenance Programme","Civic Centre Repairs & Maintenance","R2001"
"Wolverhampton City Council","http://opendatacommunities.org/id/metropolitan-district-council/wolverhampton","708708","William Gough Limited","84039","159.18","R&M - Departmental planned (external)","130207867","26/03/2018","Maintenance Programme","Centralised R&M","R2001"
"Wolverhampton City Council","http://opendatacommunities.org/id/metropolitan-district-council/wolverhampton","708708","William Gough Limited","84050","181.91","R&M - Departmental planned (external)","130208720","26/03/2018","Maintenance Programme","Centralised R&M","R2001"
"Wolverhampton City Council","http://opendatacommunities.org/id/metropolitan-district-council/wolverhampton","708708","William Gough Limited","84036","97.43","R&M - Departmental planned (external)","130207865","26/03/2018","Facilities Management","Magistrates","R2001"
"Wolverhampton City Council","http://opendatacommunities.org/id/metropolitan-district-council/wolverhampton","708708","William Gough Limited","84007","248.46","R&M - Departmental planned (external)","130207715","26/03/2018","Learning Disability Provider","Learning Disabilities Management","R2001"
"Wolverhampton City Council","http://opendatacommunities.org/id/metropolitan-district-council/wolverhampton","708708","William Gough Limited","84006","2,795.10","R&M - Departmental planned (external)","130207714","26/03/2018","Learning Disability Provider","Learning Disabilities Management","R2001"
"Wolverhampton City Council","http://opendatacommunities.org/id/metropolitan-district-council/wolverhampton","708708","William Gough Limited","84049","74.33","R&M - Departmental planned (external)","130207877","26/03/2018","Maintenance Programme","Centralised R&M","R2001"
"Wolverhampton City Council","http://opendatacommunities.org/id/metropolitan-district-council/wolverhampton","708708","William Gough Limited","84076","43.74","R&M - Departmental planned (external)","130208083","26/03/2018","Maintenance Programme","Centralised R&M","R2001"
"Wolverhampton City Council","http://opendatacommunities.org/id/metropolitan-district-council/wolverhampton","708708","William Gough Limited","84057","521.17","R&M - Departmental planned (external)","130207884","26/03/2018","Maintenance Programme","Centralised R&M","R2001"
"Wolverhampton City Council","http://opendatacommunities.org/id/metropolitan-district-council/wolverhampton","708708","William Gough Limited","84058","381.81","R&M - Departmental planned (external)","130207885","26/03/2018","Maintenance Programme","Centralised R&M","R2001"
"Wolverhampton City Council","http://opendatacommunities.org/id/metropolitan-district-council/wolverhampton","708708","William Gough Limited","83871","97.01","R&M - Departmental planned (external)","130206225","14/03/2018","Maintenance Programme","Centralised R&M","R2001"
"Wolverhampton City Council","http://opendatacommunities.org/id/metropolitan-district-council/wolverhampton","708708","William Gough Limited","83929","1,208.80","R&M - Departmental planned (external)","130207437","14/03/2018","Facilities Management","Culwell Street Depot","R2001"
"Wolverhampton City Council","http://opendatacommunities.org/id/metropolitan-district-council/wolverhampton","708708","William Gough Limited","83870","51.20","R&M - Departmental planned (external)","130206224","14/03/2018","Maintenance Programme","Centralised R&M","R2001"
"Wolverhampton City Council","http://opendatacommunities.org/id/metropolitan-district-council/wolverhampton","708708","William Gough Limited","83898","240.03","R&M - Departmental planned (external)","130206234","14/03/2018","Facilities Management","Magistrates","R2001"
"Wolverhampton City Council","http://opendatacommunities.org/id/metropolitan-district-council/wolverhampton","708708","William Gough Limited","83922","28.59","R&M - Departmental planned (external)","130206721","14/03/2018","Maintenance Programme","Centralised R&M","R2001"
"Wolverhampton City Council","http://opendatacommunities.org/id/metropolitan-district-council/wolverhampton","708708","William Gough Limited","83786","499.75","R&M - Departmental planned (external)","130204987","23/03/2018","Maintenance Programme","Centralised R&M","R2001"
"Wolverhampton City Council","http://opendatacommunities.org/id/metropolitan-district-council/wolverhampton","708708","William Gough Limited","83817","40.00","R&M - Departmental planned (external)","130205415","23/03/2018","Maintenance Programme","Civic Centre Repairs & Maintenance","R2001"
"Wolverhampton City Council","http://opendatacommunities.org/id/metropolitan-district-council/wolverhampton","708708","William Gough Limited","82929","14,420.94","Construction and Conversion","130189917","16/03/2018","","Capital Maintenance - Roof / Ceilings Replacements","C1100"
"Wolverhampton City Council","http://opendatacommunities.org/id/metropolitan-district-council/wolverhampton","708708","William Gough Limited","83916","40.00","R&M - Departmental planned (external)","130206715","14/03/2018","Maintenance Programme","Centralised R&M","R2001"
"Wolverhampton City Council","http://opendatacommunities.org/id/metropolitan-district-council/wolverhampton","708708","William Gough Limited","83888","639.92","R&M - Departmental planned (external)","130206380","14/03/2018","Maintenance Programme","Centralised R&M","R2001"
"Wolverhampton City Council","http://opendatacommunities.org/id/metropolitan-district-council/wolverhampton","708708","William Gough Limited","83873","51.20","R&M - Departmental planned (external)","130206227","14/03/2018","Maintenance Programme","Centralised R&M","R2001"
"Wolverhampton City Council","http://opendatacommunities.org/id/metropolitan-district-council/wolverhampton","708708","William Gough Limited","83904","55.78","R&M - Departmental planned (external)","130206562","14/03/2018","Maintenance Programme","Centralised R&M","R2001"
"Wolverhampton City Council","http://opendatacommunities.org/id/metropolitan-district-council/wolverhampton","708708","William Gough Limited","83886","51.20","R&M - Departmental planned (external)","130206378","14/03/2018","Maintenance Programme","Centralised R&M","R2001"
"Wolverhampton City Council","http://opendatacommunities.org/id/metropolitan-district-council/wolverhampton","708708","William Gough Limited","83968","40.00","R&M - Departmental planned (external)","130207142","21/03/2018","Maintenance Programme","Centralised R&M","R2001"
"Wolverhampton City Council","http://opendatacommunities.org/id/metropolitan-district-council/wolverhampton","708708","William Gough Limited","83984","65.91","R&M - Departmental planned (external)","130207296","21/03/2018","Maintenance Programme","Centralised R&M","R2001"
"Wolverhampton City Council","http://opendatacommunities.org/id/metropolitan-district-council/wolverhampton","708708","William Gough Limited","83982","57.37","R&M - Departmental planned (external)","130207294","21/03/2018","Maintenance Programme","Centralised R&M","R2001"
"Wolverhampton City Council","http://opendatacommunities.org/id/metropolitan-district-council/wolverhampton","708708","William Gough Limited","83936","40.00","R&M - Departmental planned (external)","130206981","21/03/2018","Maintenance Programme","Centralised R&M","R2001"
"Wolverhampton City Council","http://opendatacommunities.org/id/metropolitan-district-council/wolverhampton","708708","William Gough Limited","83962","133.34","R&M - Departmental planned (external)","130206996","21/03/2018","Maintenance Programme","Centralised R&M","R2001"
"Wolverhampton City Council","http://opendatacommunities.org/id/metropolitan-district-council/wolverhampton","708708","William Gough Limited","83956","127.82","R&M - Departmental planned (external)","130206990","21/03/2018","Maintenance Programme","Centralised R&M","R2001"
"Wolverhampton City Council","http://opendatacommunities.org/id/metropolitan-district-council/wolverhampton","708708","William Gough Limited","83913","25.77","R&M - Departmental planned (external)","130206565","14/03/2018","Bereavement Services","Cemeteries","R2001"
"Wolverhampton City Council","http://opendatacommunities.org/id/metropolitan-district-council/wolverhampton","708708","William Gough Limited","83884","97.01","R&M - Departmental planned (external)","130206376","14/03/2018","Maintenance Programme","Centralised R&M","R2001"
"Wolverhampton City Council","http://opendatacommunities.org/id/metropolitan-district-council/wolverhampton","708708","William Gough Limited","83887","159.23","R&M - Departmental planned (external)","130206379","14/03/2018","Markets","Bilston Market and Licensed Operations","R2001"
"Wolverhampton City Council","http://opendatacommunities.org/id/metropolitan-district-council/wolverhampton","708708","William Gough Limited","83868","88.46","R&M - Departmental planned (external)","130206222","14/03/2018","Maintenance Programme","Centralised R&M","R2001"
"Wolverhampton City Council","http://opendatacommunities.org/id/metropolitan-district-council/wolverhampton","708708","William Gough Limited","84013","35,000.00","Construction and Conversion","130207720","26/03/2018","","Corporate Asset Management","C1100"
"Wolverhampton City Council","http://opendatacommunities.org/id/metropolitan-district-council/wolverhampton","708708","William Gough Limited","84065","40.00","R&M - Departmental planned (external)","130208073","26/03/2018","Cleaning","Priory Green","R2001"
"Wolverhampton City Council","http://opendatacommunities.org/id/metropolitan-district-council/wolverhampton","708708","William Gough Limited","84045","217.27","R&M - Departmental planned (external)","130207873","26/03/2018","Maintenance Programme","Centralised R&M","R2001"
"Wolverhampton City Council","http://opendatacommunities.org/id/metropolitan-district-council/wolverhampton","708708","William Gough Limited","84070","135.89","R&M - Departmental planned (external)","130208078","26/03/2018","Markets","Wednesfield Street Market","R2001"
"Wolverhampton City Council","http://opendatacommunities.org/id/metropolitan-district-council/wolverhampton","708708","William Gough Limited","84009","541.38","R&M - Departmental planned (external)","130207717","26/03/2018","Maintenance Programme","Centralised R&M","R2001"
"Wolverhampton City Council","http://opendatacommunities.org/id/metropolitan-district-council/wolverhampton","708708","William Gough Limited","84042","434.27","R&M - Departmental planned (external)","130207870","26/03/2018","Bereavement Services","Cemeteries","R2001"
"Wolverhampton City Council","http://opendatacommunities.org/id/metropolitan-district-council/wolverhampton","708708","William Gough Limited","84034","40.00","R&M - Departmental planned (external)","130207727","26/03/2018","Maintenance Programme","Centralised R&M","R2001"
"Wolverhampton City Council","http://opendatacommunities.org/id/metropolitan-district-council/wolverhampton","708708","William Gough Limited","84028","424.62","R&M - Departmental planned (external)","130207725","26/03/2018","Maintenance Programme","Centralised R&M","R2001"
"Wolverhampton City Council","http://opendatacommunities.org/id/metropolitan-district-council/wolverhampton","708708","William Gough Limited","84004","67.23","R&M - Departmental planned (external)","130207712","26/03/2018","Maintenance Programme","Centralised R&M","R2001"
"Wolverhampton City Council","http://opendatacommunities.org/id/metropolitan-district-council/wolverhampton","708708","William Gough Limited","84027","1,972.10","R&M - Departmental planned (external)","130207724","26/03/2018","Maintenance Programme","Centralised R&M","R2001"
"Wolverhampton City Council","http://opendatacommunities.org/id/metropolitan-district-council/wolverhampton","708708","William Gough Limited","84035","83.32","R&M - Departmental planned (external)","130207864","26/03/2018","Maintenance Programme","Centralised R&M","R2001"
"Wolverhampton City Council","http://opendatacommunities.org/id/metropolitan-district-council/wolverhampton","708708","William Gough Limited","84085","982.84","R&M - Departmental planned (external)","130208085","26/03/2018","Markets","Bilston Market and Licensed Operations","R2001"
"Wolverhampton City Council","http://opendatacommunities.org/id/metropolitan-district-council/wolverhampton","708708","William Gough Limited","84044","40.00","R&M - Departmental planned (external)","130207872","26/03/2018","Maintenance Programme","Centralised R&M","R2001"
"Wolverhampton City Council","http://opendatacommunities.org/id/metropolitan-district-council/wolverhampton","708708","William Gough Limited","84069","189.54","R&M - Departmental planned (external)","130208077","26/03/2018","Facilities Management","Caretakers Community Centre","R2001"
"Wolverhampton City Council","http://opendatacommunities.org/id/metropolitan-district-council/wolverhampton","708708","William Gough Limited","83652","585.17","R&M - Departmental planned (external)","130202513","07/03/2018","Maintenance Programme","Centralised R&M","R2001"
"Wolverhampton City Council","http://opendatacommunities.org/id/metropolitan-district-council/wolverhampton","708708","William Gough Limited","83811","85.28","R&M - Departmental planned (external)","130205531","07/03/2018","Maintenance Programme","Centralised R&M","R2001"
"Wolverhampton City Council","http://opendatacommunities.org/id/metropolitan-district-council/wolverhampton","708708","William Gough Limited","83819","408.78","R&M - Departmental planned (external)","130205533","07/03/2018","Facilities Management","Magistrates","R2001"
"Wolverhampton City Council","http://opendatacommunities.org/id/metropolitan-district-council/wolverhampton","708708","William Gough Limited","83853","40.00","R&M - Departmental planned (external)","130205742","07/03/2018","Maintenance Programme","Centralised R&M","R2001"
"Wolverhampton City Council","http://opendatacommunities.org/id/metropolitan-district-council/wolverhampton","708708","William Gough Limited","83826","149.10","R&M - Departmental planned (external)","130205419","07/03/2018","Maintenance Programme","Centralised R&M","R2001"
"Wolverhampton City Council","http://opendatacommunities.org/id/metropolitan-district-council/wolverhampton","708708","William Gough Limited","83805","1,109.20","R&M - Departmental planned (external)","130205408","07/03/2018","Maintenance Programme","Centralised R&M","R2001"
"Wolverhampton City Council","http://opendatacommunities.org/id/metropolitan-district-council/wolverhampton","708708","William Gough Limited","83832","57.92","R&M - Departmental planned (external)","130205539","07/03/2018","Markets","Bilston Market and Licensed Operations","R2001"
"Wolverhampton City Council","http://opendatacommunities.org/id/metropolitan-district-council/wolverhampton","708708","William Gough Limited","83863","142.33","R&M - Departmental planned (external)","130206712","07/03/2018","Maintenance Programme","Civic Centre Repairs & Maintenance","R2001"
"Wolverhampton City Council","http://opendatacommunities.org/id/metropolitan-district-council/wolverhampton","708708","William Gough Limited","83821","40.00","R&M - Departmental planned (external)","130205534","07/03/2018","Maintenance Programme","Centralised R&M","R2001"
"Wolverhampton City Council","http://opendatacommunities.org/id/metropolitan-district-council/wolverhampton","708708","William Gough Limited","83834","65.28","R&M - Departmental planned (external)","130205541","07/03/2018","Maintenance Programme","Centralised R&M","R2001"
"Wolverhampton City Council","http://opendatacommunities.org/id/metropolitan-district-council/wolverhampton","708708","William Gough Limited","83048","625.59","R&M - Departmental planned (external)","130206091","07/03/2018","Maintenance Programme","Centralised R&M","R2001"
"Wolverhampton City Council","http://opendatacommunities.org/id/metropolitan-district-council/wolverhampton","708708","William Gough Limited","83828","40.00","R&M - Departmental planned (external)","130205420","07/03/2018","Maintenance Programme","Centralised R&M","R2001"
"Wolverhampton City Council","http://opendatacommunities.org/id/metropolitan-district-council/wolverhampton","708708","William Gough Limited","83809","206.41","R&M - Departmental planned (external)","130205410","23/03/2018","Maintenance Programme","Centralised R&M","R2001"
"Wolverhampton City Council","http://opendatacommunities.org/id/metropolitan-district-council/wolverhampton","708708","William Gough Limited","83875","51.20","R&M - Departmental planned (external)","130206228","14/03/2018","Maintenance Programme","Centralised R&M","R2001"
"Wolverhampton City Council","http://opendatacommunities.org/id/metropolitan-district-council/wolverhampton","708708","William Gough Limited","79835","132.00","R&M - Departmental planned (external)","130204242","02/03/2018","Markets","Bilston Market and Licensed Operations","R2001"
"Wolverhampton City Council","http://opendatacommunities.org/id/metropolitan-district-council/wolverhampton","708708","William Gough Limited","83933","28,220.31","Construction and Conversion","130206978","16/03/2018","","Learning Disability","C1100"
"Wolverhampton City Council","http://opendatacommunities.org/id/metropolitan-district-council/wolverhampton","708708","William Gough Limited","83903","477.21","R&M - Departmental planned (external)","130206713","14/03/2018","Maintenance Programme","Centralised R&M","R2001"
"Wolverhampton City Council","http://opendatacommunities.org/id/metropolitan-district-council/wolverhampton","708708","William Gough Limited","83921","46.00","R&M - Departmental planned (external)","130206720","14/03/2018","Maintenance Programme","Centralised R&M","R2001"
"Wolverhampton City Council","http://opendatacommunities.org/id/metropolitan-district-council/wolverhampton","708708","William Gough Limited","83920","40.00","R&M - Departmental planned (external)","130206719","14/03/2018","Maintenance Programme","Centralised R&M","R2001"
"Wolverhampton City Council","http://opendatacommunities.org/id/metropolitan-district-council/wolverhampton","708708","William Gough Limited","83914","77.59","R&M - Departmental planned (external)","130206566","14/03/2018","Maintenance Programme","Centralised R&M","R2001"
"Wolverhampton City Council","http://opendatacommunities.org/id/metropolitan-district-council/wolverhampton","708708","William Gough Limited","83890","884.27","R&M - Departmental planned (external)","130206382","14/03/2018","Maintenance Programme","Centralised R&M","R2001"
"Wolverhampton City Council","http://opendatacommunities.org/id/metropolitan-district-council/wolverhampton","708708","William Gough Limited","83877","51.20","R&M - Departmental planned (external)","130206229","14/03/2018","Maintenance Programme","Centralised R&M","R2001"
"Wolverhampton City Council","http://opendatacommunities.org/id/metropolitan-district-council/wolverhampton","708708","William Gough Limited","82496","40.00","R&M - Departmental planned (external)","130181955","14/03/2018","Maintenance Programme","Centralised R&M","R2001"
"Wolverhampton City Council","http://opendatacommunities.org/id/metropolitan-district-council/wolverhampton","708708","William Gough Limited","83095","101.91","R&M - Departmental planned (external)","130209450","16/03/2018","Maintenance Programme","Centralised R&M","R2001"
"Wolverhampton City Council","http://opendatacommunities.org/id/metropolitan-district-council/wolverhampton","708708","William Gough Limited","82934","4,229.78","Construction and Conversion","130189920","16/03/2018","","Capital Maintenance - Roof / Ceilings Replacements","C1100"
"Wolverhampton City Council","http://opendatacommunities.org/id/metropolitan-district-council/wolverhampton","708708","William Gough Limited","83923","40.00","R&M - Departmental planned (external)","130206722","14/03/2018","Maintenance Programme","Centralised R&M","R2001"
"Wolverhampton City Council","http://opendatacommunities.org/id/metropolitan-district-council/wolverhampton","708708","William Gough Limited","83878","269.84","R&M - Departmental planned (external)","130206230","14/03/2018","Markets","Bilston Market and Licensed Operations","R2001"
"Wolverhampton City Council","http://opendatacommunities.org/id/metropolitan-district-council/wolverhampton","708708","William Gough Limited","83126","50.04","R&M - Departmental planned (external)","130193151","02/03/2018","Maintenance Programme","Centralised R&M","R2001"
"Wolverhampton City Council","http://opendatacommunities.org/id/metropolitan-district-council/wolverhampton","708708","William Gough Limited","84037","40.00","R&M - Departmental planned (external)","130207866","26/03/2018","Maintenance Programme","Civic Centre Repairs & Maintenance","R2001"
"Wolverhampton City Council","http://opendatacommunities.org/id/metropolitan-district-council/wolverhampton","708708","William Gough Limited","84060","212.38","R&M - Departmental planned (external)","130208069","26/03/2018","Markets","Bilston Market and Licensed Operations","R2001"
"Wolverhampton City Council","http://opendatacommunities.org/id/metropolitan-district-council/wolverhampton","708708","William Gough Limited","84052","48.42","R&M - Departmental planned (external)","130207879","26/03/2018","Maintenance Programme","Centralised R&M","R2001"
"Wolverhampton City Council","http://opendatacommunities.org/id/metropolitan-district-council/wolverhampton","708708","William Gough Limited","84011","67.23","R&M - Departmental planned (external)","130207719","26/03/2018","Maintenance Programme","Centralised R&M","R2001"
"Wolverhampton City Council","http://opendatacommunities.org/id/metropolitan-district-council/wolverhampton","708708","William Gough Limited","84030","1,940.19","R&M - Departmental planned (external)","130207726","26/03/2018","Facilities Management","Caretakers Community Centre","R2001"
"Wolverhampton City Council","http://opendatacommunities.org/id/metropolitan-district-council/wolverhampton","708708","William Gough Limited","84066","149.42","R&M - Departmental planned (external)","130208074","26/03/2018","Markets","Wolverhampton Indoor and Open Market","R2001"
"Wolverhampton City Council","http://opendatacommunities.org/id/metropolitan-district-council/wolverhampton","708708","William Gough Limited","84031","20,355.81","R&M - Departmental planned (external)","130208245","26/03/2018","Corporate Asset Management","Centralised Planned Maintenance","R2001"
"Wolverhampton City Council","http://opendatacommunities.org/id/metropolitan-district-council/wolverhampton","708708","William Gough Limited","84053","1,071.33","R&M - Departmental planned (external)","130207880","26/03/2018","Maintenance Programme","Centralised R&M","R2001"
"Wolverhampton City Council","http://opendatacommunities.org/id/metropolitan-district-council/wolverhampton","708708","William Gough Limited","84016","283.08","R&M - Departmental planned (external)","130207722","26/03/2018","Estates and Valuations","Industrial Premises ; Fordhouse Road","R2001"
"Wolverhampton City Council","http://opendatacommunities.org/id/metropolitan-district-council/wolverhampton","708708","William Gough Limited","84046","142.02","R&M - Departmental planned (external)","130207874","26/03/2018","Maintenance Programme","Centralised R&M","R2001"
"Wolverhampton City Council","http://opendatacommunities.org/id/metropolitan-district-council/wolverhampton","708708","William Gough Limited","84074","413.96","R&M - Departmental planned (external)","130208081","26/03/2018","Maintenance Programme","Centralised R&M","R2001"
"Wolverhampton City Council","http://opendatacommunities.org/id/metropolitan-district-council/wolverhampton","708708","William Gough Limited","84073","35.38","R&M - Departmental planned (external)","130208080","26/03/2018","Facilities Management","Caretakers Community Centre","R2001"
"Wolverhampton City Council","http://opendatacommunities.org/id/metropolitan-district-council/wolverhampton","708708","William Gough Limited","84005","2,755.14","R&M - Departmental planned (external)","130207713","26/03/2018","Corporate Asset Management","Centralised Planned Maintenance","R2001"
"Wolverhampton City Council","http://opendatacommunities.org/id/metropolitan-district-council/wolverhampton","708708","William Gough Limited","84048","186.85","R&M - Departmental planned (external)","130207876","26/03/2018","Maintenance Programme","Centralised R&M","R2001"
"Wolverhampton City Council","http://opendatacommunities.org/id/metropolitan-district-council/wolverhampton","708708","William Gough Limited","83959","127.82","R&M - Departmental planned (external)","130206993","21/03/2018","Markets","Bilston Market and Licensed Operations","R2001"
"Wolverhampton City Council","http://opendatacommunities.org/id/metropolitan-district-council/wolverhampton","708708","William Gough Limited","83947","56.86","R&M - Departmental planned (external)","130206985","21/03/2018","Markets","Bilston Market and Licensed Operations","R2001"
"Wolverhampton City Council","http://opendatacommunities.org/id/metropolitan-district-council/wolverhampton","708708","William Gough Limited","83965","61.73","R&M - Departmental planned (external)","130207140","21/03/2018","Maintenance Programme","Centralised R&M","R2001"
"Wolverhampton City Council","http://opendatacommunities.org/id/metropolitan-district-council/wolverhampton","708708","William Gough Limited","83940","40.00","R&M - Departmental planned (external)","130206984","21/03/2018","Maintenance Programme","Centralised R&M","R2001"
"Wolverhampton City Council","http://opendatacommunities.org/id/metropolitan-district-council/wolverhampton","708708","William Gough Limited","83949","192.76","R&M - Departmental planned (external)","130206986","21/03/2018","Maintenance Programme","Centralised R&M","R2001"
"Wolverhampton City Council","http://opendatacommunities.org/id/metropolitan-district-council/wolverhampton","708708","William Gough Limited","83937","172.77","R&M - Departmental planned (external)","130206982","21/03/2018","Facilities Management","Magistrates","R2001"
"Wolverhampton City Council","http://opendatacommunities.org/id/metropolitan-district-council/wolverhampton","708708","William Gough Limited","83950","132.36","R&M - Departmental planned (external)","130206987","21/03/2018","Maintenance Programme","Centralised R&M","R2001"
"Wolverhampton City Council","http://opendatacommunities.org/id/metropolitan-district-council/wolverhampton","708708","William Gough Limited","20366","792.00","R&M - Departmental planned (external)","130207564","21/03/2018","Adult Education","Alan Garner Centre Building","R2001"
"Wolverhampton City Council","http://opendatacommunities.org/id/metropolitan-district-council/wolverhampton","708708","William Gough Limited","83973","40.00","R&M - Departmental planned (external)","130207289","21/03/2018","Maintenance Programme","Centralised R&M","R2001"
"Wolverhampton City Council","http://opendatacommunities.org/id/metropolitan-district-council/wolverhampton","708708","William Gough Limited","83991","345.00","R&M - Departmental planned (external)","130207303","21/03/2018","Maintenance Programme","Centralised R&M","R2001"
"Wolverhampton City Council","http://opendatacommunities.org/id/metropolitan-district-council/wolverhampton","708708","William Gough Limited","83812","40.00","R&M - Departmental planned (external)","130205532","07/03/2018","Maintenance Programme","Centralised R&M","R2001"
"Wolverhampton City Council","http://opendatacommunities.org/id/metropolitan-district-council/wolverhampton","708708","William Gough Limited","83434","42.55","R&M - Departmental planned (external)","130198431","07/03/2018","Maintenance Programme","Centralised R&M","R2001"
"Wolverhampton City Council","http://opendatacommunities.org/id/metropolitan-district-council/wolverhampton","708708","William Gough Limited","83810","46.00","R&M - Departmental planned (external)","130205411","07/03/2018","Maintenance Programme","Centralised R&M","R2001"
"Wolverhampton City Council","http://opendatacommunities.org/id/metropolitan-district-council/wolverhampton","708708","William Gough Limited","83862","112.10","R&M - Departmental planned (external)","130205913","07/03/2018","Facilities Management","Magistrates","R2001"
"Wolverhampton City Council","http://opendatacommunities.org/id/metropolitan-district-council/wolverhampton","708708","William Gough Limited","83814","55.60","R&M - Departmental planned (external)","130205413","07/03/2018","Maintenance Programme","Centralised R&M","R2001"
"Wolverhampton City Council","http://opendatacommunities.org/id/metropolitan-district-council/wolverhampton","708708","William Gough Limited","83839","2,948.79","R&M - Departmental planned (external)","130205545","07/03/2018","Facilities Management","Caretakers Community Centre","R2001"
"Wolverhampton City Council","http://opendatacommunities.org/id/metropolitan-district-council/wolverhampton","708708","William Gough Limited","83830","40.00","R&M - Departmental planned (external)","130205537","07/03/2018","Facilities Management","Magistrates","R2001"
"Wolverhampton City Council","http://opendatacommunities.org/id/metropolitan-district-council/wolverhampton","708708","William Gough Limited","83837","84.20","R&M - Departmental planned (external)","130205543","07/03/2018","Maintenance Programme","Centralised R&M","R2001"
"Wolverhampton City Council","http://opendatacommunities.org/id/metropolitan-district-council/wolverhampton","708708","William Gough Limited","83846","142.39","R&M - Departmental planned (external)","130205736","07/03/2018","Maintenance Programme","Centralised R&M","R2001"
"Wolverhampton City Council","http://opendatacommunities.org/id/metropolitan-district-council/wolverhampton","708708","William Gough Limited","83849","65.28","R&M - Departmental planned (external)","130205738","07/03/2018","Maintenance Programme","Centralised R&M","R2001"
"Wolverhampton City Council","http://opendatacommunities.org/id/metropolitan-district-council/wolverhampton","708708","William Gough Limited","83856","40.00","R&M - Departmental planned (external)","130205745","07/03/2018","Maintenance Programme","Centralised R&M","R2001"
"Wolverhampton City Council","http://opendatacommunities.org/id/metropolitan-district-council/wolverhampton","708708","William Gough Limited","83831","189.60","R&M - Departmental planned (external)","130205538","07/03/2018","Facilities Management","Magistrates","R2001"
"Wolverhampton City Council","http://opendatacommunities.org/id/metropolitan-district-council/wolverhampton","708708","William Gough Limited","83917","80.98","R&M - Departmental planned (external)","130206716","14/03/2018","Maintenance Programme","Centralised R&M","R2001"
"Wolverhampton City Council","http://opendatacommunities.org/id/metropolitan-district-council/wolverhampton","708708","William Gough Limited","83882","139.41","R&M - Departmental planned (external)","130206232","14/03/2018","Maintenance Programme","Centralised R&M","R2001"
"Wolverhampton City Council","http://opendatacommunities.org/id/metropolitan-district-council/wolverhampton","708708","William Gough Limited","83901","83.60","R&M - Departmental planned (external)","130206561","14/03/2018","Maintenance Programme","Centralised R&M","R2001"
"Wolverhampton City Council","http://opendatacommunities.org/id/metropolitan-district-council/wolverhampton","708708","William Gough Limited","83998","16,672.74","R&M - Departmental planned (external)","130207710","23/03/2018","Facilities Management","Parkfields Office Accomodation","R2001"
"Wolverhampton City Council","http://opendatacommunities.org/id/metropolitan-district-council/wolverhampton","708708","William Gough Limited","82166 - correction","140.15","R&M - Departmental planned (external)","130210628","23/03/2018","Maintenance Programme","Centralised R&M","R2001"
"Wolverhampton City Council","http://opendatacommunities.org/id/metropolitan-district-council/wolverhampton","708722","Windsor High School - School Fund","P16808120180313","650.00","Grant Payments to Individuals","190435204","14/03/2018","Looked After Children","LAC Education Team (LACE)","R6402"
"Wolverhampton City Council","http://opendatacommunities.org/id/metropolitan-district-council/wolverhampton","708737","Wmsnt Accessible Transport Ser Limited","6733","1,542.52","Client Transport","130208899","23/03/2018","School Planning & Resources","Special - Transport","R3042"
"Wolverhampton City Council","http://opendatacommunities.org/id/metropolitan-district-council/wolverhampton","708737","Wmsnt Accessible Transport Ser Limited","6732","1,652.70","Client Transport","130208898","23/03/2018","School Planning & Resources","Special - Transport","R3042"
"Wolverhampton City Council","http://opendatacommunities.org/id/metropolitan-district-council/wolverhampton","708762","Wolverhampton Domestic Violence Forum","324","379.19","Grant Payments","130207728","23/03/2018","Community Safety","VAWG service transformation Fund","R4700"
"Wolverhampton City Council","http://opendatacommunities.org/id/metropolitan-district-council/wolverhampton","708769","Wolverhampton Grand Theatre (1982) Ltd","SIN000011","6,250.00","Grant Payments","130210346","21/03/2018","Visitor Economy","Grand Theatre","R4700"
"Wolverhampton City Council","http://opendatacommunities.org/id/metropolitan-district-council/wolverhampton","708769","Wolverhampton Grand Theatre (1982) Ltd","SIN000012","6,250.00","Grant Payments","130210347","21/03/2018","Visitor Economy","Grand Theatre","R4700"
"Wolverhampton City Council","http://opendatacommunities.org/id/metropolitan-district-council/wolverhampton","708770","Wolverhampton Homes Limited","16/0800/DFG","4,199.63","Grants paid out","190437902","21/03/2018","","Disabled Facilities Grants","C5000"
"Wolverhampton City Council","http://opendatacommunities.org/id/metropolitan-district-council/wolverhampton","708770","Wolverhampton Homes Limited","16/0374/DFG","4,008.55","Grants paid out","190435199","14/03/2018","","Disabled Facilities Grants","C5000"
"Wolverhampton City Council","http://opendatacommunities.org/id/metropolitan-district-council/wolverhampton","708770","Wolverhampton Homes Limited","16/0300/DFG","2,374.99","Grants paid out","190440272","23/03/2018","","Disabled Facilities Grants","C5000"
"Wolverhampton City Council","http://opendatacommunities.org/id/metropolitan-district-council/wolverhampton","708770","Wolverhampton Homes Limited","16/0420/DFG","3,670.34","Grants paid out","190437897","21/03/2018","","Disabled Facilities Grants","C5000"
"Wolverhampton City Council","http://opendatacommunities.org/id/metropolitan-district-council/wolverhampton","708770","Wolverhampton Homes Limited","2600023883","35.83","Grant Payments","130207145","14/03/2018","Early Intervention","EIP Locality 5 � Whitmore Reans","R4700"
"Wolverhampton City Council","http://opendatacommunities.org/id/metropolitan-district-council/wolverhampton","708770","Wolverhampton Homes Limited","2600023749","7,717.18","Adaptations","130205424","07/03/2018","Independent Living Service","Independent Living Service","R4411"
"Wolverhampton City Council","http://opendatacommunities.org/id/metropolitan-district-council/wolverhampton","708770","Wolverhampton Homes Limited","2600023892","11,061.12","Agency Staff","130207146","14/03/2018","Independent Living Service","Telecare","R1100"
"Wolverhampton City Council","http://opendatacommunities.org/id/metropolitan-district-council/wolverhampton","708770","Wolverhampton Homes Limited","2600023767","1,052.06","Training Expenses","130205426","07/03/2018","Strategic Organisation Development","Universal Credit","R1650"
"Wolverhampton City Council","http://opendatacommunities.org/id/metropolitan-district-council/wolverhampton","708770","Wolverhampton Homes Limited","16/0798/DFG","2,161.52","Grants paid out","190437892","21/03/2018","","Disabled Facilities Grants","C5000"
"Wolverhampton City Council","http://opendatacommunities.org/id/metropolitan-district-council/wolverhampton","708770","Wolverhampton Homes Limited","16/0594/DFG","881.68","Grants paid out","190437896","21/03/2018","","Disabled Facilities Grants","C5000"
"Wolverhampton City Council","http://opendatacommunities.org/id/metropolitan-district-council/wolverhampton","708770","Wolverhampton Homes Limited","2600023874","15,095.82","Construction and Conversion","130206997","14/03/2018","","Adaptations for People with Disabilites","C1100"
"Wolverhampton City Council","http://opendatacommunities.org/id/metropolitan-district-council/wolverhampton","708770","Wolverhampton Homes Limited","2600023758","16,143.37","Construction and Conversion","130205425","07/03/2018","","Adaptations for People with Disabilites","C1100"
"Wolverhampton City Council","http://opendatacommunities.org/id/metropolitan-district-council/wolverhampton","708770","Wolverhampton Homes Limited","16/0493/DFG","3,173.45","Grants paid out","190437901","21/03/2018","","Disabled Facilities Grants","C5000"
"Wolverhampton City Council","http://opendatacommunities.org/id/metropolitan-district-council/wolverhampton","708776","Wolverhampton Radiators","34522","215.00","Equipment - Purchase","190440575","23/03/2018","Fleet Services","Fleet Management","R4000"
"Wolverhampton City Council","http://opendatacommunities.org/id/metropolitan-district-council/wolverhampton","708777","Signal 107","600030805","2,100.00","Marketing \ Non-staff advertising","130210612","23/03/2018","Markets","Bilston Market and Licensed Operations","R4317"
"Wolverhampton City Council","http://opendatacommunities.org/id/metropolitan-district-council/wolverhampton","708777","Signal 107","600112046","300.00","Marketing \ Non-staff advertising","130209267","16/03/2018","Markets","Wolverhampton Indoor and Open Market","R4317"
"Wolverhampton City Council","http://opendatacommunities.org/id/metropolitan-district-council/wolverhampton","708781","Wolverhampton Science Park Limited/Uow.","K011540","7.50","Catering","130209066","16/03/2018","Headstart","Headstart Phase 3","R4100"
"Wolverhampton City Council","http://opendatacommunities.org/id/metropolitan-district-council/wolverhampton","708787","Wolverhampton Travel","171807A","1,358.00","Client Transport","130208732","14/03/2018","School Planning & Resources","Special - Transport","R3042"
"Wolverhampton City Council","http://opendatacommunities.org/id/metropolitan-district-council/wolverhampton","708787","Wolverhampton Travel","171807","1,414.00","Client Transport","130208731","14/03/2018","School Planning & Resources","Special - Transport","R3042"
"Wolverhampton City Council","http://opendatacommunities.org/id/metropolitan-district-council/wolverhampton","708788","Wolverhampton Tree Service","9218","7,880.00","Construction and Conversion","130207565","02/03/2018","","Heath Town","C1100"
"Wolverhampton City Council","http://opendatacommunities.org/id/metropolitan-district-council/wolverhampton","708790","Wolverhampton Voluntary Sector Cncl","1698","31,912.11","TPP - Public Health Contracts","130208733","23/03/2018","Contracts","Alcohol and Drug","R5060"
"Wolverhampton City Council","http://opendatacommunities.org/id/metropolitan-district-council/wolverhampton","708793","Wolverhampton Waste Services Limited","W14/18","669,055.25","TPP - Other contractors","130207306","21/03/2018","Waste and Recycling Service","Waste Disposal - General","R5099"
"Wolverhampton City Council","http://opendatacommunities.org/id/metropolitan-district-council/wolverhampton","708793","Wolverhampton Waste Services Limited","W15/18","19,607.24","TPP - Other contractors","130207307","21/03/2018","Waste and Recycling Service","Waste Disposal - General","R5099"
"Wolverhampton City Council","http://opendatacommunities.org/id/metropolitan-district-council/wolverhampton","708801","Wolverhampton Youth Zone","WYZ352","30.00","Room Hire","130205427","07/03/2018","Community Safety","SWP - Infrastructure","R2201"
"Wolverhampton City Council","http://opendatacommunities.org/id/metropolitan-district-council/wolverhampton","708801","Wolverhampton Youth Zone","WYZ360","1,500.00","Room Hire","130207147","14/03/2018","Learning Disability Provider","City Links","R2201"
"Wolverhampton City Council","http://opendatacommunities.org/id/metropolitan-district-council/wolverhampton","708801","Wolverhampton Youth Zone","WYZ347","1,000.00","Room Hire","130207729","02/03/2018","Learning Disability Provider","City Links","R2201"
"Wolverhampton City Council","http://opendatacommunities.org/id/metropolitan-district-council/wolverhampton","708820","Woodstock Farm Boarding Kennels","0954","310.00","Storage","130206723","07/03/2018","Safeguarding","Court of Protection, Funerals and Protection of Property","R4910"
"Wolverhampton City Council","http://opendatacommunities.org/id/metropolitan-district-council/wolverhampton","708827","Wyre Forest School (Worc. County Council)","P16808120180313","650.00","Grant Payments to Individuals","190435204","14/03/2018","Looked After Children","LAC Education Team (LACE)","R6402"
"Wolverhampton City Council","http://opendatacommunities.org/id/metropolitan-district-council/wolverhampton","708827","Wyre Forest School (Worc. County Council)","P16808120180313","650.00","Grant Payments to Individuals","190435204","14/03/2018","Looked After Children","LAC Education Team (LACE)","R6402"
"Wolverhampton City Council","http://opendatacommunities.org/id/metropolitan-district-council/wolverhampton","708827","Wyre Forest School (Worc. County Council)","P16808120180313","650.00","Grant Payments to Individuals","190435204","14/03/2018","Looked After Children","LAC Education Team (LACE)","R6402"
"Wolverhampton City Council","http://opendatacommunities.org/id/metropolitan-district-council/wolverhampton","708842","Wrekin Turf Growers","33164","190.00","Materials","130206860","21/03/2018","Environmental Maintenance","Ground Maintenance East","R4007"
"Wolverhampton City Council","http://opendatacommunities.org/id/metropolitan-district-council/wolverhampton","708842","Wrekin Turf Growers","33171","190.00","Materials","130207438","21/03/2018","Environmental Maintenance","Ground Maintenance East","R4007"
"Wolverhampton City Council","http://opendatacommunities.org/id/metropolitan-district-council/wolverhampton","708842","Wrekin Turf Growers","33142","1.00","Materials","130206859","09/03/2018","Environmental Maintenance","Ground Maintenance East","R4007"
"Wolverhampton City Council","http://opendatacommunities.org/id/metropolitan-district-council/wolverhampton","708842","Wrekin Turf Growers","33142","1.00","Materials","130206859","09/03/2018","Environmental Maintenance","Ground Maintenance East","R4007"
"Wolverhampton City Council","http://opendatacommunities.org/id/metropolitan-district-council/wolverhampton","708842","Wrekin Turf Growers","33142","188.00","Materials","130206859","09/03/2018","Environmental Maintenance","Ground Maintenance East","R4007"
"Wolverhampton City Council","http://opendatacommunities.org/id/metropolitan-district-council/wolverhampton","708865","XMA Limited","CL14559","61,553.60","Plant, Equipment, Machinery & Computer Hardware","130207566","21/03/2018","","ICT Desktop Refresh","C3000"
"Wolverhampton City Council","http://opendatacommunities.org/id/metropolitan-district-council/wolverhampton","708865","XMA Limited","CL38807","39,300.00","Plant, Equipment, Machinery & Computer Hardware","130207886","26/03/2018","","ICT Desktop Refresh","C3000"
"Wolverhampton City Council","http://opendatacommunities.org/id/metropolitan-district-council/wolverhampton","708865","XMA Limited","CK48081","525.00","Plant, Equipment, Machinery & Computer Hardware","130206724","14/03/2018","","ICT Desktop Refresh","C3000"
"Wolverhampton City Council","http://opendatacommunities.org/id/metropolitan-district-council/wolverhampton","708865","XMA Limited","CJ77780","14.00","Plant, Equipment, Machinery & Computer Hardware","130205748","07/03/2018","","ICT Desktop Refresh","C3000"
"Wolverhampton City Council","http://opendatacommunities.org/id/metropolitan-district-council/wolverhampton","708865","XMA Limited","CL41377","38,979.00","Plant, Equipment, Machinery & Computer Hardware","130207887","26/03/2018","","ICT Desktop Refresh","C3000"
"Wolverhampton City Council","http://opendatacommunities.org/id/metropolitan-district-council/wolverhampton","708865","XMA Limited","CK27365","19,200.00","Plant, Equipment, Machinery & Computer Hardware","130206386","14/03/2018","","ICT Desktop Refresh","C3000"
"Wolverhampton City Council","http://opendatacommunities.org/id/metropolitan-district-council/wolverhampton","708865","XMA Limited","CK27365","7,600.00","Plant, Equipment, Machinery & Computer Hardware","130206386","14/03/2018","","ICT Desktop Refresh","C3000"
"Wolverhampton City Council","http://opendatacommunities.org/id/metropolitan-district-council/wolverhampton","708886","Ymca City Tots","NEF Spring 2018 INST 2","7,624.00","TPP - Private Nursery Education Funding","190439901","23/03/2018","Early Years","Early Years Universal Entitlement for 3 and 4 Year Olds","R5035"
"Wolverhampton City Council","http://opendatacommunities.org/id/metropolitan-district-council/wolverhampton","708886","Ymca City Tots","EYPP Aut 2017 Adjustment","659.85","TPP - Private Nursery Education Funding","190441760","26/03/2018","Early Years","Early Years Pupil Premium","R5035"
"Wolverhampton City Council","http://opendatacommunities.org/id/metropolitan-district-council/wolverhampton","708886","Ymca City Tots","6883","39.00","TPP - Child Care provided for client","130208734","09/03/2018","Adult Education","24+ Advanced Learning Loan","R5034"
"Wolverhampton City Council","http://opendatacommunities.org/id/metropolitan-district-council/wolverhampton","708886","Ymca City Tots","EYPP Spring 2018","954.00","TPP - Private Nursery Education Funding","190441753","26/03/2018","Early Years","Early Years Pupil Premium","R5035"
"Wolverhampton City Council","http://opendatacommunities.org/id/metropolitan-district-council/wolverhampton","708886","Ymca City Tots","TFT Spring 2018 Inst 2","5,281.92","TPP - Private Nursery Education Funding","190439893","23/03/2018","Early Years","Early Years Entitlement Funding for Disadvantaged 2 Year Olds","R5035"
"Wolverhampton City Council","http://opendatacommunities.org/id/metropolitan-district-council/wolverhampton","708896","Young Ones Nursery","NEF Spring 2018 INST 2","10,659.65","TPP - Private Nursery Education Funding","190439901","23/03/2018","Early Years","Early Years Universal Entitlement for 3 and 4 Year Olds","R5035"
"Wolverhampton City Council","http://opendatacommunities.org/id/metropolitan-district-council/wolverhampton","708904","Youth Justice Board England & Wales","P168518 25031820180316","1,337.00","TPP - Residential Care - Long Term","190437089","21/03/2018","Looked After Children","Remand / Secure Accommodation","R5400"
"Wolverhampton City Council","http://opendatacommunities.org/id/metropolitan-district-council/wolverhampton","708904","Youth Justice Board England & Wales","P168518 25031820180316","579.00","TPP - Residential Care - Long Term","190437089","21/03/2018","Looked After Children","Remand / Secure Accommodation","R5400"
"Wolverhampton City Council","http://opendatacommunities.org/id/metropolitan-district-council/wolverhampton","708904","Youth Justice Board England & Wales","P168518 25031820180316","2,316.00","TPP - Residential Care - Long Term","190437089","21/03/2018","Looked After Children","Remand / Secure Accommodation","R5400"
"Wolverhampton City Council","http://opendatacommunities.org/id/metropolitan-district-council/wolverhampton","708904","Youth Justice Board England & Wales","P168518 25031820180316","3,247.00","TPP - Residential Care - Long Term","190437089","21/03/2018","Looked After Children","Remand / Secure Accommodation","R5400"
"Wolverhampton City Council","http://opendatacommunities.org/id/metropolitan-district-council/wolverhampton","708904","Youth Justice Board England & Wales","P168518 25031820180316","3,247.00","TPP - Residential Care - Long Term","190437089","21/03/2018","Looked After Children","Remand / Secure Accommodation","R5400"
"Wolverhampton City Council","http://opendatacommunities.org/id/metropolitan-district-council/wolverhampton","708904","Youth Justice Board England & Wales","P168518 25031820180316","1,146.00","TPP - Residential Care - Long Term","190437089","21/03/2018","Looked After Children","Remand / Secure Accommodation","R5400"
"Wolverhampton City Council","http://opendatacommunities.org/id/metropolitan-district-council/wolverhampton","708904","Youth Justice Board England & Wales","P168518 25031820180316","955.00","TPP - Residential Care - Long Term","190437089","21/03/2018","Looked After Children","Remand / Secure Accommodation","R5400"
"Wolverhampton City Council","http://opendatacommunities.org/id/metropolitan-district-council/wolverhampton","708918","Zebra Uno Limited","ZU13244","160.00","Services - Professional Fees","130209640","26/03/2018","Strategic Finance","Strategic Finance","R4400"
"Wolverhampton City Council","http://opendatacommunities.org/id/metropolitan-district-council/wolverhampton","708918","Zebra Uno Limited","ZU13241","1,470.00","Services - Translation fees","130209639","16/03/2018","Adults Assessment & Care Management East","Adult Services � East","R4406"
"Wolverhampton City Council","http://opendatacommunities.org/id/metropolitan-district-council/wolverhampton","708945","1St Web Media Limited","226","1,290.00","Computing - Licences","130207439","21/03/2018","Skills","Eduction Business Partnership","R4535"
"Wolverhampton City Council","http://opendatacommunities.org/id/metropolitan-district-council/wolverhampton","709088","4Imprint Direct Limited","DM-1282530","490.00","Stationery","130208559","14/03/2018","Healthier Places Service","Healthy Lifestyles Team","R4308"
"Wolverhampton City Council","http://opendatacommunities.org/id/metropolitan-district-council/wolverhampton","709088","4Imprint Direct Limited","DM-1282530","15.00","Comms - Postage","130208559","14/03/2018","Healthier Places Service","Healthy Lifestyles Team","R4503"
"Wolverhampton City Council","http://opendatacommunities.org/id/metropolitan-district-council/wolverhampton","709154","A And A Automatics Limited","9294","120.00","R&M - Departmental planned (external)","130210535","26/03/2018","Facilities Management","Caretakers Community Centre","R2001"
"Wolverhampton City Council","http://opendatacommunities.org/id/metropolitan-district-council/wolverhampton","709154","A And A Automatics Limited","9265","126.00","R&M - Departmental planned (external)","130207571","14/03/2018","Facilities Management","Caretakers Community Centre","R2001"
"Wolverhampton City Council","http://opendatacommunities.org/id/metropolitan-district-council/wolverhampton","709154","A And A Automatics Limited","9242","1,047.00","R&M - Departmental planned (external)","130206094","02/03/2018","Facilities Management","Culwell Street Depot","R2001"
"Wolverhampton City Council","http://opendatacommunities.org/id/metropolitan-district-council/wolverhampton","709154","A And A Automatics Limited","9295","110.00","R&M - Departmental planned (external)","130210536","26/03/2018","Facilities Management","Caretakers Community Centre","R2001"
"Wolverhampton City Council","http://opendatacommunities.org/id/metropolitan-district-council/wolverhampton","709154","A And A Automatics Limited","9275","110.00","R&M - Departmental planned (external)","130210534","23/03/2018","Markets","Wholesale Market Facilities Management","R2001"
"Wolverhampton City Council","http://opendatacommunities.org/id/metropolitan-district-council/wolverhampton","709154","A And A Automatics Limited","9235","110.00","R&M - Departmental planned (external)","130207569","02/03/2018","Markets","Wholesale Market Facilities Management","R2001"
"Wolverhampton City Council","http://opendatacommunities.org/id/metropolitan-district-council/wolverhampton","709154","A And A Automatics Limited","9269","110.00","R&M - Departmental planned (external)","130207573","14/03/2018","Facilities Management","Bilston Town Hall","R2001"
"Wolverhampton City Council","http://opendatacommunities.org/id/metropolitan-district-council/wolverhampton","709154","A And A Automatics Limited","9272","126.00","R&M - Departmental planned (external)","130210533","23/03/2018","Facilities Management","Bilston Town Hall","R2001"
"Wolverhampton City Council","http://opendatacommunities.org/id/metropolitan-district-council/wolverhampton","709154","A And A Automatics Limited","9268","110.00","R&M - Departmental planned (external)","130207572","14/03/2018","Facilities Management","Caretakers Community Centre","R2001"
"Wolverhampton City Council","http://opendatacommunities.org/id/metropolitan-district-council/wolverhampton","709319","A G Jones Stocktakers","180146","175.00","Services - Professional Fees","130207574","09/03/2018","Visitor Economy","Catering Overhead Account","R4400"
"Wolverhampton City Council","http://opendatacommunities.org/id/metropolitan-district-council/wolverhampton","709319","A G Jones Stocktakers","180147","95.00","Services - Professional Fees","130207575","07/03/2018","Visitor Economy","The Little Civic","R4400"
"Wolverhampton City Council","http://opendatacommunities.org/id/metropolitan-district-council/wolverhampton","709319","A G Jones Stocktakers","180249","95.00","Services - Professional Fees","130210095","21/03/2018","Visitor Economy","Bantock - Tea Rooms","R4400"
"Wolverhampton City Council","http://opendatacommunities.org/id/metropolitan-district-council/wolverhampton","709440","A Lawson(Dudley School Of Motoring)","313","200.00","Services - Professional Fees","190432471","07/03/2018","Fleet Services","Fleet Management","R4400"
"Wolverhampton City Council","http://opendatacommunities.org/id/metropolitan-district-council/wolverhampton","709440","A Lawson(Dudley School Of Motoring)","313","25.00","Services - Professional Fees","190432471","07/03/2018","Fleet Services","Fleet Management","R4400"
"Wolverhampton City Council","http://opendatacommunities.org/id/metropolitan-district-council/wolverhampton","709478","Debra Johnson","WCCOF1","1,194.69","Services - Professional Fees","130208560","09/03/2018","Service Director Children & Young People","Children & Young People Support Costs","R4400"
"Wolverhampton City Council","http://opendatacommunities.org/id/metropolitan-district-council/wolverhampton","709616","A Stubbs","W44","1,250.00","Marketing \ Non-staff advertising","130209462","16/03/2018","Corporate Communications","Communications & Marketing - General","R4317"
"Wolverhampton City Council","http://opendatacommunities.org/id/metropolitan-district-council/wolverhampton","709616","A Stubbs","W45","1,120.00","Marketing \ Non-staff advertising","130209463","16/03/2018","Corporate Communications","Communications & Marketing - General","R4317"
"Wolverhampton City Council","http://opendatacommunities.org/id/metropolitan-district-council/wolverhampton","709616","A Stubbs","W43","360.00","Marketing \ Non-staff advertising","130207000","02/03/2018","Leisure Services","WV Active Marketing","R4317"
"Wolverhampton City Council","http://opendatacommunities.org/id/metropolitan-district-council/wolverhampton","709704","A.B.C.- Countdown Cars Limited","3823","243.00","Client Transport","130209464","21/03/2018","Child Protection","CIN/CP Social Work Unit - Area 6","R3042"
"Wolverhampton City Council","http://opendatacommunities.org/id/metropolitan-district-council/wolverhampton","709704","A.B.C.- Countdown Cars Limited","3937","365.50","Client Transport","130209465","21/03/2018","Child Protection","CIN/CP Social Work Unit - Area 6","R3042"
"Wolverhampton City Council","http://opendatacommunities.org/id/metropolitan-district-council/wolverhampton","709704","A.B.C.- Countdown Cars Limited","4575","64.50","Client Transport","130209645","21/03/2018","Learning Disability Provider","Duke Street Bungalows","R3042"
"Wolverhampton City Council","http://opendatacommunities.org/id/metropolitan-district-council/wolverhampton","709704","A.B.C.- Countdown Cars Limited","3936","36.00","Client Transport","130210541","26/03/2018","Learning Disability Provider","Duke Street Bungalows","R3042"
"Wolverhampton City Council","http://opendatacommunities.org/id/metropolitan-district-council/wolverhampton","709704","A.B.C.- Countdown Cars Limited","4564","318.50","Client Transport","130209644","21/03/2018","Specialist Support","Upper Pendeford Farm Short Breaks Centre","R3042"
"Wolverhampton City Council","http://opendatacommunities.org/id/metropolitan-district-council/wolverhampton","709704","A.B.C.- Countdown Cars Limited","4542","289.00","Client Transport","130209642","21/03/2018","Specialist Support","Alternative Provision","R3042"
"Wolverhampton City Council","http://opendatacommunities.org/id/metropolitan-district-council/wolverhampton","709704","A.B.C.- Countdown Cars Limited","4536","134.00","Client Transport","130209641","21/03/2018","Inclusion Support","Inclusion Support","R3042"
"Wolverhampton City Council","http://opendatacommunities.org/id/metropolitan-district-council/wolverhampton","709704","A.B.C.- Countdown Cars Limited","4556","8.00","Client Transport","130209643","21/03/2018","Child Protection","CIN/CP Social Work Unit - Area 6","R3042"
"Wolverhampton City Council","http://opendatacommunities.org/id/metropolitan-district-council/wolverhampton","709729","Enoch Evans Llp","10158029 New payment","600.00","Services - Professional Fees","130210425","21/03/2018","Housing","Housing Regeneration - Strategy & Development","R4400"
"Wolverhampton City Council","http://opendatacommunities.org/id/metropolitan-district-council/wolverhampton","710089","ABC Early Learning & Childcare Cent","P16755520180305","583.92","Client Allowances","190431949","07/03/2018","Child Protection","CIN - Graisley MAST - Area 3","R6301"
"Wolverhampton City Council","http://opendatacommunities.org/id/metropolitan-district-council/wolverhampton","710089","ABC Early Learning & Childcare Cent","EYPP Spring 2018","286.20","TPP - Private Nursery Education Funding","190441753","26/03/2018","Early Years","Early Years Pupil Premium","R5035"
"Wolverhampton City Council","http://opendatacommunities.org/id/metropolitan-district-council/wolverhampton","710089","ABC Early Learning & Childcare Cent","TFT Spring 2018 Inst 2","9,601.78","TPP - Private Nursery Education Funding","190439893","23/03/2018","Early Years","Early Years Entitlement Funding for Disadvantaged 2 Year Olds","R5035"
"Wolverhampton City Council","http://opendatacommunities.org/id/metropolitan-district-council/wolverhampton","710089","ABC Early Learning & Childcare Cent","NEF Spring 2018 INST 2","25,630.59","TPP - Private Nursery Education Funding","190439901","23/03/2018","Early Years","Early Years Universal Entitlement for 3 and 4 Year Olds","R5035"
"Wolverhampton City Council","http://opendatacommunities.org/id/metropolitan-district-council/wolverhampton","710133","Abel Alarm Company Limited.","411024404","819.09","Fixtures and Fittings - R&M","130208086","07/03/2018","Adult Education","The Maltings","R2502"
"Wolverhampton City Council","http://opendatacommunities.org/id/metropolitan-district-council/wolverhampton","710375","Access Hire Nationwide Limited","70897","640.00","Provisions (Resale)","130208251","14/03/2018","Highways Maintenance","Planned Highways Maintenance","R4102"
"Wolverhampton City Council","http://opendatacommunities.org/id/metropolitan-district-council/wolverhampton","710375","Access Hire Nationwide Limited","70896","1,160.00","Hire of Vehicles","190435565","16/03/2018","Fleet Services","Fleet Management","R3200"
"Wolverhampton City Council","http://opendatacommunities.org/id/metropolitan-district-council/wolverhampton","710375","Access Hire Nationwide Limited","70895","1,160.00","Hire of Vehicles","190435564","16/03/2018","Fleet Services","Fleet Management","R3200"
"Wolverhampton City Council","http://opendatacommunities.org/id/metropolitan-district-council/wolverhampton","710375","Access Hire Nationwide Limited","70898","640.00","Provisions (Resale)","130208252","14/03/2018","Highways Maintenance","Planned Highways Maintenance","R4102"
"Wolverhampton City Council","http://opendatacommunities.org/id/metropolitan-district-council/wolverhampton","710375","Access Hire Nationwide Limited","70893","1,180.00","Hire of Vehicles","190435562","16/03/2018","Fleet Services","Fleet Management","R3200"
"Wolverhampton City Council","http://opendatacommunities.org/id/metropolitan-district-council/wolverhampton","710375","Access Hire Nationwide Limited","70894","1,180.00","Hire of Vehicles","190435563","16/03/2018","Fleet Services","Fleet Management","R3200"
"Wolverhampton City Council","http://opendatacommunities.org/id/metropolitan-district-council/wolverhampton","710511","Music Mark","7132","75.00","Services - Professional Fees","130210096","21/03/2018","Standards and Vulnerable Pupils","Music Support Team","R4400"
"Wolverhampton City Council","http://opendatacommunities.org/id/metropolitan-district-council/wolverhampton","710562","Sandwell & W Birmingham Hosp NHS Trust","440443 Dec 17","57.00","TPP - Public Health Contracts","190432110","07/03/2018","Contracts","Sexual Health","R5060"
"Wolverhampton City Council","http://opendatacommunities.org/id/metropolitan-district-council/wolverhampton","710562","Sandwell & W Birmingham Hosp NHS Trust","440442 GUM Dec 17","1,267.00","TPP - Public Health Contracts","190432109","07/03/2018","Contracts","Sexual Health","R5060"
"Wolverhampton City Council","http://opendatacommunities.org/id/metropolitan-district-council/wolverhampton","710569","British Gas Business","966277754","37.23","Electricity","190439861","23/03/2018","Estates and Valuations","Industrial Premises ; Fordhouse Road","R2100"
"Wolverhampton City Council","http://opendatacommunities.org/id/metropolitan-district-council/wolverhampton","710569","British Gas Business","966277754(a)","260.44","Electricity","190439862","23/03/2018","Estates and Valuations","Industrial Premises ; Fordhouse Road","R2100"
"Wolverhampton City Council","http://opendatacommunities.org/id/metropolitan-district-council/wolverhampton","710570","Memsafe LTD","2562","661.50","Services - Professional Fees","130208428","26/03/2018","Bereavement Services","Cemeteries","R4400"
"Wolverhampton City Council","http://opendatacommunities.org/id/metropolitan-district-council/wolverhampton","710570","Memsafe LTD","2563","768.32","Services - Professional Fees","130208429","26/03/2018","Bereavement Services","Cemeteries","R4400"
"Wolverhampton City Council","http://opendatacommunities.org/id/metropolitan-district-council/wolverhampton","710572","Number 10 Interim","4413","2,475.00","Agency Staff","130203049","07/03/2018","Corporate Communications","Insight and Performance","R1100"
"Wolverhampton City Council","http://opendatacommunities.org/id/metropolitan-district-council/wolverhampton","710572","Number 10 Interim","4436","4,400.00","Agency Staff","130203050","07/03/2018","Corporate Communications","Insight and Performance","R1100"
"Wolverhampton City Council","http://opendatacommunities.org/id/metropolitan-district-council/wolverhampton","710573","Western Power Distribution (West Mids) t/a Western Power Distribution","KP00140035","244.45","TPP - Maintenance on Other Roads","130207312","14/03/2018","Street Lighting","Street Lighting Maintenance","R5710"
"Wolverhampton City Council","http://opendatacommunities.org/id/metropolitan-district-council/wolverhampton","710573","Western Power Distribution (West Mids) t/a Western Power Distribution","KP00140036","488.90","TPP - Maintenance on Other Roads","130207313","14/03/2018","Street Lighting","Street Lighting Maintenance","R5710"
"Wolverhampton City Council","http://opendatacommunities.org/id/metropolitan-district-council/wolverhampton","710573","Western Power Distribution (West Mids) t/a Western Power Distribution","KP00140105","639.78","TPP - Maintenance on Other Roads","130207315","16/03/2018","Street Lighting","Street Lighting Maintenance","R5710"
"Wolverhampton City Council","http://opendatacommunities.org/id/metropolitan-district-council/wolverhampton","710573","Western Power Distribution (West Mids) t/a Western Power Distribution","KI00138726","479.51","TPP - Maintenance on Other Roads","130207308","21/03/2018","Street Lighting","Street Lighting Maintenance","R5710"
"Wolverhampton City Council","http://opendatacommunities.org/id/metropolitan-district-council/wolverhampton","710573","Western Power Distribution (West Mids) t/a Western Power Distribution","KP00139955","639.78","TPP - Maintenance on Other Roads","130207310","14/03/2018","Street Lighting","Street Lighting Maintenance","R5710"
"Wolverhampton City Council","http://opendatacommunities.org/id/metropolitan-district-council/wolverhampton","710573","Western Power Distribution (West Mids) t/a Western Power Distribution","KP00140103","639.78","TPP - Maintenance on Other Roads","130207314","16/03/2018","Street Lighting","Street Lighting Maintenance","R5710"
"Wolverhampton City Council","http://opendatacommunities.org/id/metropolitan-district-council/wolverhampton","710573","Western Power Distribution (West Mids) t/a Western Power Distribution","KP00139906","459.86","TPP - Maintenance on Other Roads","130206570","14/03/2018","Street Lighting","Signs Illuminated","R5710"
"Wolverhampton City Council","http://opendatacommunities.org/id/metropolitan-district-council/wolverhampton","710573","Western Power Distribution (West Mids) t/a Western Power Distribution","KP00140019","131.08","TPP - Maintenance on Other Roads","130207311","14/03/2018","Street Lighting","Street Lighting Maintenance","R5710"
"Wolverhampton City Council","http://opendatacommunities.org/id/metropolitan-district-council/wolverhampton","710573","Western Power Distribution (West Mids) t/a Western Power Distribution","KP00140109","830.11","TPP - Maintenance on Other Roads","130207317","16/03/2018","Corporate Asset Management","Strategic Asset Management Team","R5710"
"Wolverhampton City Council","http://opendatacommunities.org/id/metropolitan-district-council/wolverhampton","710573","Western Power Distribution (West Mids) t/a Western Power Distribution","KP00139656","1,069.65","TPP - Maintenance on Other Roads","130205750","07/03/2018","Housing Revenue Account","HRA General","R5710"
"Wolverhampton City Council","http://opendatacommunities.org/id/metropolitan-district-council/wolverhampton","710573","Western Power Distribution (West Mids) t/a Western Power Distribution","KP00140175","639.78","TPP - Maintenance on Other Roads","130207318","21/03/2018","Street Lighting","Street Lighting Maintenance","R5710"
"Wolverhampton City Council","http://opendatacommunities.org/id/metropolitan-district-council/wolverhampton","710573","Western Power Distribution (West Mids) t/a Western Power Distribution","KP00139954","639.78","TPP - Maintenance on Other Roads","130207309","14/03/2018","Street Lighting","Street Lighting Maintenance","R5710"
"Wolverhampton City Council","http://opendatacommunities.org/id/metropolitan-district-council/wolverhampton","710588","Holy Trinity CE VC Prim Sch&Comm.Nurs Ut","P16852020180316","650.00","Grant Payments to Individuals","190437072","21/03/2018","Looked After Children","LAC Education Team (LACE)","R6402"
"Wolverhampton City Council","http://opendatacommunities.org/id/metropolitan-district-council/wolverhampton","710589","St Johns CofE Primary School","P16852020180316","650.00","Grant Payments to Individuals","190437072","21/03/2018","Looked After Children","LAC Education Team (LACE)","R6402"
"Wolverhampton City Council","http://opendatacommunities.org/id/metropolitan-district-council/wolverhampton","710600","E H Smith Builders Merchant LTD","LEI178606","2,140.00","Materials","130207001","16/03/2018","Highways Maintenance","Patching","R4007"
"Wolverhampton City Council","http://opendatacommunities.org/id/metropolitan-district-council/wolverhampton","710600","E H Smith Builders Merchant LTD","CAI969796","1,350.61","Materials","130205915","07/03/2018","Highways Maintenance","Patching","R4007"
"Wolverhampton City Council","http://opendatacommunities.org/id/metropolitan-district-council/wolverhampton","710600","E H Smith Builders Merchant LTD","LEI178557","1,627.00","Materials","130206391","14/03/2018","Highways Maintenance","Patching","R4007"
"Wolverhampton City Council","http://opendatacommunities.org/id/metropolitan-district-council/wolverhampton","710600","E H Smith Builders Merchant LTD","CAI970714","152.65","Materials","130207889","26/03/2018","Highways Maintenance","Patching","R4007"
"Wolverhampton City Council","http://opendatacommunities.org/id/metropolitan-district-council/wolverhampton","710600","E H Smith Builders Merchant LTD","CAI970713","30.53","Materials","130207888","26/03/2018","Highways Maintenance","Patching","R4007"
"Wolverhampton City Council","http://opendatacommunities.org/id/metropolitan-district-council/wolverhampton","710600","E H Smith Builders Merchant LTD","LEI178524","2,493.00","Materials","130206390","14/03/2018","Highways Maintenance","Patching","R4007"
"Wolverhampton City Council","http://opendatacommunities.org/id/metropolitan-district-council/wolverhampton","710600","E H Smith Builders Merchant LTD","CAI969797","46.50","Materials","130205916","07/03/2018","Highways Maintenance","Patching","R4007"
"Wolverhampton City Council","http://opendatacommunities.org/id/metropolitan-district-council/wolverhampton","710615","Poplars Medical Practice","FOS4039","150.00","Services - Professional Fees","190430795","07/03/2018","Looked After Children","Fostering Team & Allowances","R4400"
"Wolverhampton City Council","http://opendatacommunities.org/id/metropolitan-district-council/wolverhampton","710620","ARCO Central LTD","932319742","12.93","Equipment - Purchase","190430163","02/03/2018","Fleet Services","Fleet Management","R4000"
"Wolverhampton City Council","http://opendatacommunities.org/id/metropolitan-district-council/wolverhampton","710620","ARCO Central LTD","932319742","49.98","Equipment - Purchase","190430163","02/03/2018","Fleet Services","Fleet Management","R4000"
"Wolverhampton City Council","http://opendatacommunities.org/id/metropolitan-district-council/wolverhampton","710620","ARCO Central LTD","932319742","11.09","Equipment - Purchase","190430163","02/03/2018","Fleet Services","Fleet Management","R4000"
"Wolverhampton City Council","http://opendatacommunities.org/id/metropolitan-district-council/wolverhampton","710620","ARCO Central LTD","932319742","19.42","Equipment - Purchase","190430163","02/03/2018","Fleet Services","Fleet Management","R4000"
"Wolverhampton City Council","http://opendatacommunities.org/id/metropolitan-district-council/wolverhampton","710640","Turner & Townsend Project Management LTD","000576970","16,441.61","Construction and Conversion","130208737","21/03/2018","","Future Spaces","C1100"
"Wolverhampton City Council","http://opendatacommunities.org/id/metropolitan-district-council/wolverhampton","710644","RSA Academy","P16852020180316","650.00","Grant Payments to Individuals","190437072","21/03/2018","Looked After Children","LAC Education Team (LACE)","R6402"
"Wolverhampton City Council","http://opendatacommunities.org/id/metropolitan-district-council/wolverhampton","710644","RSA Academy","P16852020180316","650.00","Grant Payments to Individuals","190437072","21/03/2018","Looked After Children","LAC Education Team (LACE)","R6402"
"Wolverhampton City Council","http://opendatacommunities.org/id/metropolitan-district-council/wolverhampton","710644","RSA Academy","512918","3,783.33","TPP - Alternative Provision of Education","130209802","21/03/2018","Standards and Vulnerable Pupils","SEN Education OOC","R5037"
"Wolverhampton City Council","http://opendatacommunities.org/id/metropolitan-district-council/wolverhampton","710664","NonStop Recruitment LTD","144323","1,312.50","Agency Staff","130205751","07/03/2018","Child Protection","CIN/CP Social Work Unit - Area 1","R1100"
"Wolverhampton City Council","http://opendatacommunities.org/id/metropolitan-district-council/wolverhampton","710664","NonStop Recruitment LTD","144133","33.20","Agency Staff","130205141","02/03/2018","Looked After Children","Adoption and Residence Team & Allowances","R1100"
"Wolverhampton City Council","http://opendatacommunities.org/id/metropolitan-district-council/wolverhampton","710664","NonStop Recruitment LTD","144177","1,303.88","Agency Staff","130205143","02/03/2018","Looked After Children","Adoption and Residence Team & Allowances","R1100"
"Wolverhampton City Council","http://opendatacommunities.org/id/metropolitan-district-council/wolverhampton","710664","NonStop Recruitment LTD","144669","1,295.00","Agency Staff","130206861","16/03/2018","Child Protection","CIN/CP Social Work Unit - Area 5","R1100"
"Wolverhampton City Council","http://opendatacommunities.org/id/metropolitan-district-council/wolverhampton","710664","NonStop Recruitment LTD","145037","1,295.00","Agency Staff","130208087","26/03/2018","Child Protection","CIN/CP Social Work Unit - Area 5","R1100"
"Wolverhampton City Council","http://opendatacommunities.org/id/metropolitan-district-council/wolverhampton","710664","NonStop Recruitment LTD","144131","33.75","Agency Staff","130205139","02/03/2018","Looked After Children","Adoption and Residence Team & Allowances","R1100"
"Wolverhampton City Council","http://opendatacommunities.org/id/metropolitan-district-council/wolverhampton","710664","NonStop Recruitment LTD","144203","1,312.50","Agency Staff","130205148","02/03/2018","Child Protection","CIN/CP Social Work Unit - Area 1","R1100"
"Wolverhampton City Council","http://opendatacommunities.org/id/metropolitan-district-council/wolverhampton","710664","NonStop Recruitment LTD","144130","16.40","Agency Staff","130205138","02/03/2018","Looked After Children","Adoption and Residence Team & Allowances","R1100"
"Wolverhampton City Council","http://opendatacommunities.org/id/metropolitan-district-council/wolverhampton","710664","NonStop Recruitment LTD","144132","14.00","Agency Staff","130205140","02/03/2018","Looked After Children","Adoption and Residence Team & Allowances","R1100"
"Wolverhampton City Council","http://opendatacommunities.org/id/metropolitan-district-council/wolverhampton","710664","NonStop Recruitment LTD","144671","1,295.00","Agency Staff","130206863","16/03/2018","Child Protection","CIN/CP Social Work Unit - Area 5","R1100"
"Wolverhampton City Council","http://opendatacommunities.org/id/metropolitan-district-council/wolverhampton","710664","NonStop Recruitment LTD","144670","1,295.00","Agency Staff","130206862","16/03/2018","Child Protection","CIN/CP Social Work Unit - Area 5","R1100"
"Wolverhampton City Council","http://opendatacommunities.org/id/metropolitan-district-council/wolverhampton","710664","NonStop Recruitment LTD","144134","18.40","Agency Staff","130205142","02/03/2018","Looked After Children","Adoption and Residence Team & Allowances","R1100"
"Wolverhampton City Council","http://opendatacommunities.org/id/metropolitan-district-council/wolverhampton","710725","SS Mary & Johns Catholic Primary School","P16808120180313","650.00","Grant Payments to Individuals","190435204","14/03/2018","Looked After Children","LAC Education Team (LACE)","R6402"
"Wolverhampton City Council","http://opendatacommunities.org/id/metropolitan-district-council/wolverhampton","710725","SS Mary & Johns Catholic Primary School","P16808120180313","650.00","Grant Payments to Individuals","190435204","14/03/2018","Looked After Children","LAC Education Team (LACE)","R6402"
"Wolverhampton City Council","http://opendatacommunities.org/id/metropolitan-district-council/wolverhampton","710756","Phoenix Software Ltd","OP/C027839","-216.51","Computing - Purchase of Hardware","130205918","26/03/2018","School Planning & Resources","Technical Support","R4530"
"Wolverhampton City Council","http://opendatacommunities.org/id/metropolitan-district-council/wolverhampton","710756","Phoenix Software Ltd","OP/I815259","372.65","Computing - Purchase of Software","130208253","26/03/2018","School Planning & Resources","Technical Support","R4531"
"Wolverhampton City Council","http://opendatacommunities.org/id/metropolitan-district-council/wolverhampton","710780","Wilson & Scott (Highways) LTD","26482","573.94","Construction and Conversion","130206392","14/03/2018","","Safety Programme","C1100"
"Wolverhampton City Council","http://opendatacommunities.org/id/metropolitan-district-council/wolverhampton","710780","Wilson & Scott (Highways) LTD","26488","352.24","TPP - Maintenance on Principal Roads","130206393","14/03/2018","Highways Maintenance","Road Markings","R5700"
"Wolverhampton City Council","http://opendatacommunities.org/id/metropolitan-district-council/wolverhampton","710780","Wilson & Scott (Highways) LTD","26607","943.72","Construction and Conversion","130208906","26/03/2018","","Safety Programme","C1100"
"Wolverhampton City Council","http://opendatacommunities.org/id/metropolitan-district-council/wolverhampton","710780","Wilson & Scott (Highways) LTD","26606","1,887.46","TPP - Maintenance on Principal Roads","130208564","26/03/2018","Highways Maintenance","Road Markings","R5700"
"Wolverhampton City Council","http://opendatacommunities.org/id/metropolitan-district-council/wolverhampton","710786","St Judes C of E Primary Academy","EYPP Spring 2018","477.00","TPP - Private Nursery Education Funding","190441753","26/03/2018","Early Years","Early Years Pupil Premium","R5035"
"Wolverhampton City Council","http://opendatacommunities.org/id/metropolitan-district-council/wolverhampton","710786","St Judes C of E Primary Academy","SEN Mainstream Top Ups Spring Term 2017/18 - St Judes CE Academy","10,394.08","Grant Payments","190439955","23/03/2018","Schools","High Needs Top Up -Mainstream Schools/Academies","R4700"
"Wolverhampton City Council","http://opendatacommunities.org/id/metropolitan-district-council/wolverhampton","710786","St Judes C of E Primary Academy","TFT Spring 2018 Inst 2","5,281.92","TPP - Private Nursery Education Funding","190439893","23/03/2018","Early Years","Early Years Entitlement Funding for Disadvantaged 2 Year Olds","R5035"
"Wolverhampton City Council","http://opendatacommunities.org/id/metropolitan-district-council/wolverhampton","710786","St Judes C of E Primary Academy","P16808120180313","650.00","Grant Payments to Individuals","190435204","14/03/2018","Looked After Children","LAC Education Team (LACE)","R6402"
"Wolverhampton City Council","http://opendatacommunities.org/id/metropolitan-district-council/wolverhampton","710796","IR James Associates LTD","3485","725.00","Equipment - Purchase","130207319","21/03/2018","Cleaning","Cleaning of Buildings - General","R4000"
"Wolverhampton City Council","http://opendatacommunities.org/id/metropolitan-district-council/wolverhampton","710804","Worcester Health & Care","T026750 GUM Jan 18","88.00","TPP - Public Health Contracts","190432106","07/03/2018","Contracts","Sexual Health","R5060"
"Wolverhampton City Council","http://opendatacommunities.org/id/metropolitan-district-council/wolverhampton","710825","Beanstalk","0000010659","10,272.00","Training Expenses","130210554","23/03/2018","Looked After Children","Pupil Premium","R1650"
"Wolverhampton City Council","http://opendatacommunities.org/id/metropolitan-district-council/wolverhampton","710828","Andrew Page","061441168","49.17","Equipment - Purchase","190436965","21/03/2018","Fleet Services","Fleet Management","R4000"
"Wolverhampton City Council","http://opendatacommunities.org/id/metropolitan-district-council/wolverhampton","710828","Andrew Page","061444784","5.62","Equipment - Purchase","190436967","21/03/2018","Fleet Services","Fleet Management","R4000"
"Wolverhampton City Council","http://opendatacommunities.org/id/metropolitan-district-council/wolverhampton","710828","Andrew Page","G123255","-45.00","Equipment - Purchase","190437047","21/03/2018","Fleet Services","Fleet Management","R4000"
"Wolverhampton City Council","http://opendatacommunities.org/id/metropolitan-district-council/wolverhampton","710828","Andrew Page","G080817.1","-30.86","Equipment - Purchase","190435325","14/03/2018","Fleet Services","Fleet Management","R4000"
"Wolverhampton City Council","http://opendatacommunities.org/id/metropolitan-district-council/wolverhampton","710828","Andrew Page","061440082","3.34","Equipment - Purchase","190435250","14/03/2018","Fleet Services","Fleet Management","R4000"
"Wolverhampton City Council","http://opendatacommunities.org/id/metropolitan-district-council/wolverhampton","710828","Andrew Page","061439402","3.38","Equipment - Purchase","190435247","14/03/2018","Fleet Services","Fleet Management","R4000"
"Wolverhampton City Council","http://opendatacommunities.org/id/metropolitan-district-council/wolverhampton","710828","Andrew Page","061439402","4.62","Equipment - Purchase","190435247","14/03/2018","Fleet Services","Fleet Management","R4000"
"Wolverhampton City Council","http://opendatacommunities.org/id/metropolitan-district-council/wolverhampton","710828","Andrew Page","061440082","8.86","Equipment - Purchase","190435250","14/03/2018","Fleet Services","Fleet Management","R4000"
"Wolverhampton City Council","http://opendatacommunities.org/id/metropolitan-district-council/wolverhampton","710828","Andrew Page","061440082","5.19","Equipment - Purchase","190435250","14/03/2018","Fleet Services","Fleet Management","R4000"
"Wolverhampton City Council","http://opendatacommunities.org/id/metropolitan-district-council/wolverhampton","710828","Andrew Page","061444554","13.18","Equipment - Purchase","190439569","23/03/2018","Fleet Services","Fleet Management","R4000"
"Wolverhampton City Council","http://opendatacommunities.org/id/metropolitan-district-council/wolverhampton","710828","Andrew Page","061442081","6.25","Equipment - Purchase","190439563","23/03/2018","Fleet Services","Fleet Management","R4000"
"Wolverhampton City Council","http://opendatacommunities.org/id/metropolitan-district-council/wolverhampton","710828","Andrew Page","061442081","22.53","Equipment - Purchase","190439563","23/03/2018","Fleet Services","Fleet Management","R4000"
"Wolverhampton City Council","http://opendatacommunities.org/id/metropolitan-district-council/wolverhampton","710828","Andrew Page","061444678","28.19","Equipment - Purchase","190439570","23/03/2018","Fleet Services","Fleet Management","R4000"
"Wolverhampton City Council","http://opendatacommunities.org/id/metropolitan-district-council/wolverhampton","710828","Andrew Page","G123277","-35.38","Equipment - Purchase","190439654","23/03/2018","Fleet Services","Fleet Management","R4000"
"Wolverhampton City Council","http://opendatacommunities.org/id/metropolitan-district-council/wolverhampton","710828","Andrew Page","061441399","8.54","Equipment - Purchase","190439559","23/03/2018","Fleet Services","Fleet Management","R4000"
"Wolverhampton City Council","http://opendatacommunities.org/id/metropolitan-district-council/wolverhampton","710828","Andrew Page","061440640","85.31","Equipment - Purchase","190439558","23/03/2018","Fleet Services","Fleet Management","R4000"
"Wolverhampton City Council","http://opendatacommunities.org/id/metropolitan-district-council/wolverhampton","710828","Andrew Page","061442081","14.52","Equipment - Purchase","190439563","23/03/2018","Fleet Services","Fleet Management","R4000"
"Wolverhampton City Council","http://opendatacommunities.org/id/metropolitan-district-council/wolverhampton","710828","Andrew Page","061442081","6.61","Equipment - Purchase","190439563","23/03/2018","Fleet Services","Fleet Management","R4000"
"Wolverhampton City Council","http://opendatacommunities.org/id/metropolitan-district-council/wolverhampton","710828","Andrew Page","061442081","30.32","Equipment - Purchase","190439563","23/03/2018","Fleet Services","Fleet Management","R4000"
"Wolverhampton City Council","http://opendatacommunities.org/id/metropolitan-district-council/wolverhampton","710828","Andrew Page","061442081","27.11","Equipment - Purchase","190439563","23/03/2018","Fleet Services","Fleet Management","R4000"
"Wolverhampton City Council","http://opendatacommunities.org/id/metropolitan-district-council/wolverhampton","710828","Andrew Page","061442081","35.60","Equipment - Purchase","190439563","23/03/2018","Fleet Services","Fleet Management","R4000"
"Wolverhampton City Council","http://opendatacommunities.org/id/metropolitan-district-council/wolverhampton","710828","Andrew Page","061445861","69.27","Equipment - Purchase","190440546","23/03/2018","Fleet Services","Fleet Management","R4000"
"Wolverhampton City Council","http://opendatacommunities.org/id/metropolitan-district-council/wolverhampton","710828","Andrew Page","061445861","40.00","Equipment - Purchase","190440546","23/03/2018","Fleet Services","Fleet Management","R4000"
"Wolverhampton City Council","http://opendatacommunities.org/id/metropolitan-district-council/wolverhampton","710828","Andrew Page","061436408","3.79","Equipment - Purchase","190430117","02/03/2018","Fleet Services","Fleet Management","R4000"
"Wolverhampton City Council","http://opendatacommunities.org/id/metropolitan-district-council/wolverhampton","710828","Andrew Page","061436407","5.42","Equipment - Purchase","190430116","02/03/2018","Fleet Services","Fleet Management","R4000"
"Wolverhampton City Council","http://opendatacommunities.org/id/metropolitan-district-council/wolverhampton","710828","Andrew Page","061436407","17.39","Equipment - Purchase","190430116","02/03/2018","Fleet Services","Fleet Management","R4000"
"Wolverhampton City Council","http://opendatacommunities.org/id/metropolitan-district-council/wolverhampton","710828","Andrew Page","061435271","3.46","Equipment - Purchase","190430112","02/03/2018","Fleet Services","Fleet Management","R4000"
"Wolverhampton City Council","http://opendatacommunities.org/id/metropolitan-district-council/wolverhampton","710828","Andrew Page","061435271","3.30","Equipment - Purchase","190430112","02/03/2018","Fleet Services","Fleet Management","R4000"
"Wolverhampton City Council","http://opendatacommunities.org/id/metropolitan-district-council/wolverhampton","710828","Andrew Page","061444086","40.00","Equipment - Purchase","190441057","26/03/2018","Fleet Services","Fleet Management","R4000"
"Wolverhampton City Council","http://opendatacommunities.org/id/metropolitan-district-council/wolverhampton","710828","Andrew Page","061444086","69.27","Equipment - Purchase","190441057","26/03/2018","Fleet Services","Fleet Management","R4000"
"Wolverhampton City Council","http://opendatacommunities.org/id/metropolitan-district-council/wolverhampton","710828","Andrew Page","061444086","16.18","Equipment - Purchase","190441057","26/03/2018","Fleet Services","Fleet Management","R4000"
"Wolverhampton City Council","http://opendatacommunities.org/id/metropolitan-district-council/wolverhampton","710828","Andrew Page","061444086","19.04","Equipment - Purchase","190441057","26/03/2018","Fleet Services","Fleet Management","R4000"
"Wolverhampton City Council","http://opendatacommunities.org/id/metropolitan-district-council/wolverhampton","710828","Andrew Page","061438810","1.30","Equipment - Purchase","190436959","21/03/2018","Fleet Services","Fleet Management","R4000"
"Wolverhampton City Council","http://opendatacommunities.org/id/metropolitan-district-council/wolverhampton","710828","Andrew Page","061444403","28.19","Equipment - Purchase","190436966","21/03/2018","Fleet Services","Fleet Management","R4000"
"Wolverhampton City Council","http://opendatacommunities.org/id/metropolitan-district-council/wolverhampton","710828","Andrew Page","061444403","17.78","Equipment - Purchase","190436966","21/03/2018","Fleet Services","Fleet Management","R4000"
"Wolverhampton City Council","http://opendatacommunities.org/id/metropolitan-district-council/wolverhampton","710828","Andrew Page","061444403","36.30","Equipment - Purchase","190436966","21/03/2018","Fleet Services","Fleet Management","R4000"
"Wolverhampton City Council","http://opendatacommunities.org/id/metropolitan-district-council/wolverhampton","710828","Andrew Page","061441150","5.74","Equipment - Purchase","190436961","21/03/2018","Fleet Services","Fleet Management","R4000"
"Wolverhampton City Council","http://opendatacommunities.org/id/metropolitan-district-council/wolverhampton","710828","Andrew Page","G080080","-30.32","Equipment - Purchase","190437046","21/03/2018","Fleet Services","Fleet Management","R4000"
"Wolverhampton City Council","http://opendatacommunities.org/id/metropolitan-district-council/wolverhampton","710828","Andrew Page","061440396","33.61","Equipment - Purchase","190435251","14/03/2018","Fleet Services","Fleet Management","R4000"
"Wolverhampton City Council","http://opendatacommunities.org/id/metropolitan-district-council/wolverhampton","710828","Andrew Page","061440437","23.68","Equipment - Purchase","190435252","14/03/2018","Fleet Services","Fleet Management","R4000"
"Wolverhampton City Council","http://opendatacommunities.org/id/metropolitan-district-council/wolverhampton","710828","Andrew Page","061440437","22.53","Equipment - Purchase","190435252","14/03/2018","Fleet Services","Fleet Management","R4000"
"Wolverhampton City Council","http://opendatacommunities.org/id/metropolitan-district-council/wolverhampton","710828","Andrew Page","061440437","6.61","Equipment - Purchase","190435252","14/03/2018","Fleet Services","Fleet Management","R4000"
"Wolverhampton City Council","http://opendatacommunities.org/id/metropolitan-district-council/wolverhampton","710828","Andrew Page","061440437","3.66","Equipment - Purchase","190435252","14/03/2018","Fleet Services","Fleet Management","R4000"
"Wolverhampton City Council","http://opendatacommunities.org/id/metropolitan-district-council/wolverhampton","710828","Andrew Page","061440437","16.77","Equipment - Purchase","190435252","14/03/2018","Fleet Services","Fleet Management","R4000"
"Wolverhampton City Council","http://opendatacommunities.org/id/metropolitan-district-council/wolverhampton","710828","Andrew Page","061437516","10.75","Equipment - Purchase","190430120","02/03/2018","Fleet Services","Fleet Management","R4000"
"Wolverhampton City Council","http://opendatacommunities.org/id/metropolitan-district-council/wolverhampton","710828","Andrew Page","061441157","269.98","Equipment - Purchase","190430122","02/03/2018","Fleet Services","Fleet Management","R4000"
"Wolverhampton City Council","http://opendatacommunities.org/id/metropolitan-district-council/wolverhampton","710828","Andrew Page","061438193","165.00","Equipment - Purchase","190430121","02/03/2018","Fleet Services","Fleet Management","R4000"
"Wolverhampton City Council","http://opendatacommunities.org/id/metropolitan-district-council/wolverhampton","710828","Andrew Page","061438193","15.00","Equipment - Purchase","190430121","02/03/2018","Fleet Services","Fleet Management","R4000"
"Wolverhampton City Council","http://opendatacommunities.org/id/metropolitan-district-council/wolverhampton","710828","Andrew Page","061438193","165.00","Equipment - Purchase","190430121","02/03/2018","Fleet Services","Fleet Management","R4000"
"Wolverhampton City Council","http://opendatacommunities.org/id/metropolitan-district-council/wolverhampton","710828","Andrew Page","061436620","101.99","Equipment - Purchase","190439556","23/03/2018","Fleet Services","Fleet Management","R4000"
"Wolverhampton City Council","http://opendatacommunities.org/id/metropolitan-district-council/wolverhampton","710828","Andrew Page","061436620","30.00","Equipment - Purchase","190439556","23/03/2018","Fleet Services","Fleet Management","R4000"
"Wolverhampton City Council","http://opendatacommunities.org/id/metropolitan-district-council/wolverhampton","710828","Andrew Page","061436620","8.02","Equipment - Purchase","190439556","23/03/2018","Fleet Services","Fleet Management","R4000"
"Wolverhampton City Council","http://opendatacommunities.org/id/metropolitan-district-council/wolverhampton","710828","Andrew Page","061445163","375.00","Equipment - Purchase","190440544","23/03/2018","Fleet Services","Fleet Management","R4000"
"Wolverhampton City Council","http://opendatacommunities.org/id/metropolitan-district-council/wolverhampton","710828","Andrew Page","061445163","375.00","Equipment - Purchase","190440544","23/03/2018","Fleet Services","Fleet Management","R4000"
"Wolverhampton City Council","http://opendatacommunities.org/id/metropolitan-district-council/wolverhampton","710828","Andrew Page","061445064","24.41","Equipment - Purchase","190440543","23/03/2018","Fleet Services","Fleet Management","R4000"
"Wolverhampton City Council","http://opendatacommunities.org/id/metropolitan-district-council/wolverhampton","710828","Andrew Page","061445433","15.62","Equipment - Purchase","190440545","23/03/2018","Fleet Services","Fleet Management","R4000"
"Wolverhampton City Council","http://opendatacommunities.org/id/metropolitan-district-council/wolverhampton","710828","Andrew Page","061446349","13.54","Equipment - Purchase","190440550","23/03/2018","Fleet Services","Fleet Management","R4000"
"Wolverhampton City Council","http://opendatacommunities.org/id/metropolitan-district-council/wolverhampton","710828","Andrew Page","061445996","4.81","Equipment - Purchase","190440547","23/03/2018","Fleet Services","Fleet Management","R4000"
"Wolverhampton City Council","http://opendatacommunities.org/id/metropolitan-district-council/wolverhampton","710828","Andrew Page","061446365","71.70","Equipment - Purchase","190440551","23/03/2018","Fleet Services","Fleet Management","R4000"
"Wolverhampton City Council","http://opendatacommunities.org/id/metropolitan-district-council/wolverhampton","710828","Andrew Page","061444280","40.00","Equipment - Purchase","190441058","26/03/2018","Fleet Services","Fleet Management","R4000"
"Wolverhampton City Council","http://opendatacommunities.org/id/metropolitan-district-council/wolverhampton","710828","Andrew Page","061444280","69.27","Equipment - Purchase","190441058","26/03/2018","Fleet Services","Fleet Management","R4000"
"Wolverhampton City Council","http://opendatacommunities.org/id/metropolitan-district-council/wolverhampton","710828","Andrew Page","G080817","-8.00","Equipment - Purchase","190435324","14/03/2018","Fleet Services","Fleet Management","R4000"
"Wolverhampton City Council","http://opendatacommunities.org/id/metropolitan-district-council/wolverhampton","710828","Andrew Page","061439530","2.56","Equipment - Purchase","190435249","14/03/2018","Fleet Services","Fleet Management","R4000"
"Wolverhampton City Council","http://opendatacommunities.org/id/metropolitan-district-council/wolverhampton","710828","Andrew Page","061439530","8.34","Equipment - Purchase","190435249","14/03/2018","Fleet Services","Fleet Management","R4000"
"Wolverhampton City Council","http://opendatacommunities.org/id/metropolitan-district-council/wolverhampton","710828","Andrew Page","061439530","4.58","Equipment - Purchase","190435249","14/03/2018","Fleet Services","Fleet Management","R4000"
"Wolverhampton City Council","http://opendatacommunities.org/id/metropolitan-district-council/wolverhampton","710828","Andrew Page","061439530","8.18","Equipment - Purchase","190435249","14/03/2018","Fleet Services","Fleet Management","R4000"
"Wolverhampton City Council","http://opendatacommunities.org/id/metropolitan-district-council/wolverhampton","710828","Andrew Page","061438710","106.72","Equipment - Purchase","190436957","21/03/2018","Fleet Services","Fleet Management","R4000"
"Wolverhampton City Council","http://opendatacommunities.org/id/metropolitan-district-council/wolverhampton","710828","Andrew Page","061438710","45.00","Equipment - Purchase","190436957","21/03/2018","Fleet Services","Fleet Management","R4000"
"Wolverhampton City Council","http://opendatacommunities.org/id/metropolitan-district-council/wolverhampton","710828","Andrew Page","061438808","15.04","Equipment - Purchase","190436958","21/03/2018","Fleet Services","Fleet Management","R4000"
"Wolverhampton City Council","http://opendatacommunities.org/id/metropolitan-district-council/wolverhampton","710828","Andrew Page","061441151","5.74","Equipment - Purchase","190436962","21/03/2018","Fleet Services","Fleet Management","R4000"
